{"text_format":"1","workbook":"xlsx","n_sheets":11,"sheets":["Night ONE","Night ONE-option 2","NIGHT TWO","NIGHT THREE","Championship Night","Team SB Donations","GPI Ranking-Seeding","Teams","32 team Bracketology","# of games per night","Team # Match ups"],"not_rendered":{"charts":0,"images":0,"macros":1,"external_links":0,"defined_names":3,"comments":0,"pivot_tables":0},"unopened":[],"bounds":{"document_bytes":16777216,"sheet_cells":100000,"rows_first":2000,"rows_last":500,"rows_between":2000,"halvings":0,"cell_chars":16384,"cell_head_chars":4096},"cells_cut":0,"cells_raw":0,"read":"whole","date_system":"1900"}

{"sheet":"Night ONE","index":0,"n_rows":50,"n_cols":24,"rows_kept":50,"cut":false,"hidden":false,"merged":[[0,6,0,7]]}
["Night 1- ALL at Springdale",null,null,null,"  - Teams Play each team within their own Bracket",null,"Score",null,null,null,null,null,"RESULTS- Night One"]
["# games","time","Courts","Bracket","HOME","AWAY","W","L","Winner","Pt Diff",null,"Division","Teams","Win","Loss",null,"Team #","# of Games",null,"Bracket","NO BREAK","30 MIN","60 MIN","90 MIN"]
[1,"06:00:00","court 1","C","SARC- $et for Life","SARC- Dirt Devils",21,4,"SARC- $et for Life",{"$f":"G3-H3","v":17},null,"A","SO- Kiss My Ace",{"$f":"COUNTIF(I$3:I$50,M3)","v":2},{"$f":"3-N3","v":1},null,1,3,null,"A",null,null,2]
[2,null,"court 2","C","SARC- Mojo Risin ","SARC- Good Bumps, Nice Sets",21,16,"SARC- Good Bumps, Nice Sets",{"$f":"G4-H4","v":5},null,"A","LKP- Air Vectors",{"$f":"COUNTIF(I$3:I$50,M4)","v":1},2,null,2,3,null,"B",null,1,1]
[3,null,"court 3","D","HG- Swingrays","LKP- Block You Like a Hurricane",21,14,"LKP- Block You Like a Hurricane",7,null,"A","SARC- Volleywood",2,1,null,3,3,null,"C",null,1,1]
[4,null,"court 4","D","GS- Dirty Sets on Tuesday","GS- Sand Gators",21,11,"GS- Sand Gators",10,null,"A","LKP- Pass It Around",1,2,null,4,3,null,"D",null,2]
[5,null,"court 5","F","NR- Hit That Thang","SARC- I'd Hit That",21,19,"NR- Hit That Thang",2,null,"A","LKP- Casual Sets",1,2,null,5,3,null,"E",null,1,1]
[6,null,"court 6","F","CT- Concrete Feet","GS- Rhymes with Stupid",21,10,"CT- Concrete Feet",11,null,"A","NR- Six Pack Attack",3,0,null,6,3,null,"F",null,2]
[7,"06:30:00","court 1","A","SO- Kiss My Ace","LKP- Air Vectors",21,17,"SO- Kiss My Ace",4,null,"A","LKP- Will Play for Sets",2,1,null,7,3,null,"G",null,null,2]
[8,null,"court 2","A","SARC- Volleywood","LKP- Pass It Around",21,12,"SARC- Volleywood",9,null,"A","GS- 50 Shades of Greystone",0,3,null,8,3,null,"H",null,1,1]
[9,null,"court 3","G","SARC- Mizfits","SARC- Sets on the Beach",21,11,"SARC- Sets on the Beach",10,null,"B","SARC- Raleigh Brawl",2,1,null,9,3]
[10,null,"court 4","G","SARC- Here for Beer","SPN- Team Sponsors",21,19,"SARC- Here for Beer",2,null,"B","SARC- Notorious D.I.G.",0,3,null,10,3]
[11,null,"court 5","E","SARC- Raleigh Brawl","SARC- Notorious D.I.G.",21,9,"SARC- Raleigh Brawl",12,null,"B","LKP- Bumpn' Uglies",2,1,null,11,3]
[12,null,"court 6","E","LKP- Bumpn' Uglies","SARC- Sand Diggers",23,21,"SARC- Sand Diggers",2,null,"B","SARC- Sand Diggers",2,1,null,12,3]
[13,"07:00:00","court 1","F","NR- Hit That Thang","CT- Concrete Feet",21,8,"NR- Hit That Thang",13,null,"B","NR- Hit That Thang",3,0,null,13,3]
[14,null,"court 2","F","SARC- I'd Hit That","GS- Rhymes with Stupid",21,13,"SARC- I'd Hit That",8,null,"B","SARC- I'd Hit That",1,2,null,14,3]
[15,null,"court 3","C","SARC- $et for Life","SARC- Mojo Risin ",21,14,"SARC- $et for Life",7,null,"B","CT- Concrete Feet",2,1,null,15,3]
[16,null,"court 4","C","SARC- Dirt Devils","SARC- Good Bumps, Nice Sets",21,13,"SARC- Good Bumps, Nice Sets",8,null,"B","GS- Rhymes with Stupid",0,3,null,16,3]
[17,null,"court 5","D","HG- Swingrays","GS- Dirty Sets on Tuesday",21,12,"HG- Swingrays",9,null,"C","SARC- $et for Life",3,0,null,17,3]
[18,null,"court 6","D","LKP- Block You Like a Hurricane","GS- Sand Gators",21,7,"GS- Sand Gators",14,null,"C","SARC- Dirt Devils",1,2,null,18,3]
[19,"07:30:00","court 1","B","LKP- Casual Sets","NR- Six Pack Attack",21,8,"NR- Six Pack Attack",13,null,"C","SARC- Mojo Risin ",0,3,null,19,3]
[20,null,"court 2","B","LKP- Will Play for Sets","GS- 50 Shades of Greystone",21,16,"LKP- Will Play for Sets",5,null,"C","SARC- Good Bumps, Nice Sets",2,1,null,20,3]
[21,null,"court 3","E","SARC- Raleigh Brawl","LKP- Bumpn' Uglies",21,12,"LKP- Bumpn' Uglies",9,null,"C","HG- Swingrays",2,1,null,21,3]
[22,null,"court 4","E","SARC- Notorious D.I.G.","SARC- Sand Diggers",22,20,"SARC- Sand Diggers",2,null,"C","LKP- Block You Like a Hurricane",2,1,null,22,3]
[23,null,"court 5","H","SARC- Unprotected Sets","SO- Team Kona",21,4,"SO- Team Kona",17,null,"C","GS- Dirty Sets on Tuesday",0,3,null,23,3]
[24,null,"court 6","H","GS- El Toro's Revenge","CT- Dangerous When Set",21,12,"GS- El Toro's Revenge",9,null,"C","GS- Sand Gators",2,1,null,24,3]
[25,"08:00:00","court 1","A","SO- Kiss My Ace","SARC- Volleywood",21,19,"SO- Kiss My Ace",2,null,"D","SARC- Mizfits",0,3,null,25,3]
[26,null,"court 2","A","LKP- Air Vectors","LKP- Pass It Around",21,15,"LKP- Air Vectors",6,null,"D","SARC- Sets on the Beach",2,1,null,26,3]
[27,null,"court 3","D","GS- Sand Gators","HG- Swingrays",21,17,"HG- Swingrays",4,null,"D","SARC- Here for Beer",3,0,null,27,3]
[28,null,"court 4","D","LKP- Block You Like a Hurricane","GS- Dirty Sets on Tuesday",21,11,"LKP- Block You Like a Hurricane",10,null,"D","SPN- Team Sponsors",1,2,null,28,3]
[29,null,"court 5","G","SARC- Mizfits","SARC- Here for Beer",21,14,"SARC- Here for Beer",7,null,"D","SARC- Unprotected Sets",0,3,null,29,3]
[30,null,"court 6","G","SARC- Sets on the Beach","SPN- Team Sponsors",21,18,"SARC- Sets on the Beach",3,null,"D","SO- Team Kona",2,1,null,30,3]
[31,"08:30:00","court 1","E","SARC- Sand Diggers","SARC- Raleigh Brawl",21,17,"SARC- Raleigh Brawl",4,null,"D","GS- El Toro's Revenge",2,1,null,31,3]
[32,null,"court 2","E","SARC- Notorious D.I.G.","LKP- Bumpn' Uglies",21,14,"LKP- Bumpn' Uglies",7,null,"D","CT- Dangerous When Set",2,1,null,32,3]
[33,null,"court 3","F","SARC- I'd Hit That","CT- Concrete Feet",21,19,"CT- Concrete Feet",2]
[34,null,"court 4","F","GS- Rhymes with Stupid","NR- Hit That Thang",21,18,"NR- Hit That Thang",3]
[35,null,"court 5","C","SARC- Good Bumps, Nice Sets","SARC- $et for Life",21,14,"SARC- $et for Life",7]
[36,null,"court 6","C","SARC- Dirt Devils","SARC- Mojo Risin ",21,16,"SARC- Dirt Devils",5]
[37,"09:00:00","court 1","B","NR- Six Pack Attack","GS- 50 Shades of Greystone",21,10,"NR- Six Pack Attack",11]
[38,null,"court 2","B","LKP- Casual Sets","LKP- Will Play for Sets",21,10,"LKP- Will Play for Sets",11]
[39,null,"court 3","H","SARC- Unprotected Sets","GS- El Toro's Revenge",21,7,"GS- El Toro's Revenge",14]
[40,null,"court 4","H","SO- Team Kona","CT- Dangerous When Set",21,10,"CT- Dangerous When Set",11]
[41,"09:30:00","court 1","G","SPN- Team Sponsors","SARC- Mizfits",21,9,"SPN- Team Sponsors",12]
[42,null,"court 2","G","SARC- Sets on the Beach","SARC- Here for Beer",21,18,"SARC- Here for Beer",3]
[43,null,"court 3","A","LKP- Pass It Around","SO- Kiss My Ace",22,20,"LKP- Pass It Around",2]
[44,null,"court 4","A","LKP- Air Vectors","SARC- Volleywood",21,16,"SARC- Volleywood",5]
[45,"10:00:00","court 1","H","CT- Dangerous When Set","SARC- Unprotected Sets",21,10,"CT- Dangerous When Set",11]
[46,null,"court 2","H","SO- Team Kona","GS- El Toro's Revenge",21,10,"SO- Team Kona",11]
[47,null,"court 3","B","GS- 50 Shades of Greystone","LKP- Casual Sets",21,10,"LKP- Casual Sets",11]
[48,null,"court 4","B","NR- Six Pack Attack","LKP- Will Play for Sets",21,18,"NR- Six Pack Attack",3]

{"sheet":"Night ONE-option 2","index":1,"n_rows":50,"n_cols":14,"rows_kept":50,"cut":false,"hidden":true,"merged":[]}
["Night 1","ALL at Springdale"]
["# games","time","Courts",null,null,null,null,null,null,null,"NO BREAK","30 MIN","60 MIN","90 MIN"]
[1,"06:00:00","court 1","C",9,10,null,null,null,"A",null,1,1]
[2,null,"court 2","C",11,12,null,null,null,"B",null,1,1]
[3,null,"court 3","D",13,14,null,null,null,"C",null,1,1]
[4,null,"court 4","D",15,16,null,null,null,"D",null,1,1]
[5,null,"court 5","E",17,18,null,null,null,"E",null,1,1]
[6,null,"court 6","E",19,20,null,null,null,"F",null,null,1,1]
[7,"06:30:00","court 1","A",1,2,null,null,null,"G",null,1,1]
[8,null,"court 2","A",3,4,null,null,null,"H",null,1,1]
[9,null,"court 3","G",25,26]
[10,null,"court 4","G",27,28]
[11,null,"court 5","F",21,22]
[12,null,"court 6","F",21,23]
[13,"07:00:00","court 1","B",5,6]
[14,null,"court 2","B",7,8]
[15,null,"court 3","C",9,11]
[16,null,"court 4","C",10,12]
[17,null,"court 5","D",13,15]
[18,null,"court 6","D",14,16]
[19,"07:30:00","court 1","A",2,4]
[20,null,"court 2","A",1,3]
[21,null,"court 3","E",17,19]
[22,null,"court 4","E",18,20]
[23,null,"court 5","H",29,30]
[24,null,"court 6","H",31,32]
[25,"08:00:00","court 1","B",6,8]
[26,null,"court 2","B",5,7]
[27,null,"court 3","F",24,21]
[28,null,"court 4","F",23,24]
[29,null,"court 5","G",25,27]
[30,null,"court 6","G",26,28]
[31,"08:30:00","court 1","E",20,17]
[32,null,"court 2","E",18,19]
[33,null,"court 3","D",16,13]
[34,null,"court 4","D",14,15]
[35,null,"court 5","C",12,9]
[36,null,"court 6","C",10,11]
[37,"09:00:00","court 1","A",4,1]
[38,null,"court 2","A",2,3]
[39,null,"court 3","H",29,31]
[40,null,"court 4","H",30,32]
[41,"09:30:00","court 1","B",8,5]
[42,null,"court 2","B",6,7]
[43,null,"court 3","G",28,25]
[44,null,"court 4","G",26,27]
[45,"10:00:00","court 1","F",22,23]
[46,null,"court 2","F",22,24]
[47,null,"court 3","H",32,29]
[48,null,"court 4","H",30,31]

{"sheet":"NIGHT TWO","index":2,"n_rows":83,"n_cols":28,"rows_kept":83,"cut":false,"hidden":false,"merged":[[0,6,0,7],[21,6,21,7],[43,6,43,7],[63,6,63,7]]}
["Lake Park  A VS B Brackets  (A Division)",null,null,null,null,null,"Score",null,null,null,null,null,"RESULTS- After Night Two"]
[null,null,null,null,"HOME","AWAY","W","L","Winner","Pt Diff",null,"Division","Teams","Win","Loss",null,null,null,"Teams on SARC Red Courts",null,"Team","No Break","30 min","60 min",null,null,"ct 1","ct 3"]
[1,"06:00:00","court 1",null,"LKP- Air Vectors","NR- Six Pack Attack",21,14,"NR- Six Pack Attack",{"$f":"G3-H3","v":7},null,"A","SO- Kiss My Ace",{"$f":"COUNTIF('Night ONE'!I$3:I$50,M3)+COUNTIF(I$3:I$83,M3)","v":4},{"$f":"7-N3","v":3},null,null,null,"LKP- Air Vectors",null,1,null,3,null,null,1,2,2]
[2,null,"court 2",null,"SO- Kiss My Ace","LKP- Casual Sets",21,18,"SO- Kiss My Ace",{"$f":"G4-H4","v":3},null,"A","LKP- Air Vectors",{"$f":"COUNTIF('Night ONE'!I$3:I$50,M4)+COUNTIF(I$3:I$83,M4)","v":4},3,null,null,null,"SO- Kiss My Ace",null,2,null,3,null,null,2,2,2]
[3,"06:30:00","court 1",null,"LKP- Pass It Around","GS- 50 Shades of Greystone",21,15,"LKP- Pass It Around",6,null,"A","SARC- Volleywood",{"$f":"COUNTIF('Night ONE'!I$3:I$50,M5)+COUNTIF(I$3:I$83,M5)","v":5},2,null,null,null,"LKP- Pass It Around",null,3,null,3,null,null,3,2,2]
[4,null,"court 2",null,"SARC- Volleywood","LKP- Will Play for Sets",21,12,"SARC- Volleywood",9,null,"A","LKP- Pass It Around",{"$f":"COUNTIF('Night ONE'!I$3:I$50,M6)+COUNTIF(I$3:I$83,M6)","v":2},5,null,null,null,"SARC- Volleywood",null,4,null,3,null,null,4,2,2]
[5,"07:00:00","court 1",null,"LKP- Air Vectors","LKP- Casual Sets",21,17,"LKP- Air Vectors",4,null,"A","LKP- Casual Sets",{"$f":"COUNTIF('Night ONE'!I$3:I$50,M7)+COUNTIF(I$3:I$83,M7)","v":2},5,null,null,null,"NR- Six Pack Attack",null,5,null,2,1,null,5,2,2]
[6,null,"court 2",null,"SO- Kiss My Ace","NR- Six Pack Attack",21,2,"NR- Six Pack Attack",19,null,"A","NR- Six Pack Attack",{"$f":"COUNTIF('Night ONE'!I$3:I$50,M8)+COUNTIF(I$3:I$83,M8)","v":7},0,null,null,null,"LKP- Casual Sets",null,6,null,2,1,null,6,2,2]
[7,"07:30:00","court 1",null,"LKP- Pass It Around","LKP- Will Play for Sets",21,15,"LKP- Will Play for Sets",6,null,"A","LKP- Will Play for Sets",{"$f":"COUNTIF('Night ONE'!I$3:I$50,M9)+COUNTIF(I$3:I$83,M9)","v":4},3,null,null,null,"GS- 50 Shades of Greystone",null,7,1,2,null,null,7,2,2]
[8,null,"court 2",null,"SARC- Volleywood","GS- 50 Shades of Greystone",21,7,"SARC- Volleywood",14,null,"A","GS- 50 Shades of Greystone",{"$f":"COUNTIF('Night ONE'!I$3:I$50,M10)+COUNTIF(I$3:I$83,M10)","v":0},7,null,null,null,"LKP- Will Play for Sets",null,8,1,2,null,null,8,2,2]
[9,"08:00:00","court 1",null,"LKP- Will Play for Sets","SO- Kiss My Ace",21,18,"LKP- Will Play for Sets",3,null,"B","SARC- Raleigh Brawl",{"$f":"COUNTIF('Night ONE'!I$3:I$50,M11)+COUNTIF(I$3:I$83,M11)","v":3},4,null,null,null,null,null,null,null,null,null,null,null,{"$f":"SUM(AA3:AA10)","v":16},{"$f":"SUM(AB3:AB10)","v":16}]
[10,null,"court 2",null,"GS- 50 Shades of Greystone","LKP- Air Vectors",21,19,"LKP- Air Vectors",2,null,"B","SARC- Notorious D.I.G.",{"$f":"COUNTIF('Night ONE'!I$3:I$50,M12)+COUNTIF(I$3:I$83,M12)","v":3},4]
[11,"08:30:00","court 1",null,"LKP- Casual Sets","SARC- Volleywood",21,10,"SARC- Volleywood",11,null,"B","LKP- Bumpn' Uglies",{"$f":"COUNTIF('Night ONE'!I$3:I$50,M13)+COUNTIF(I$3:I$83,M13)","v":4},3]
[12,null,"court 2",null,"NR- Six Pack Attack","LKP- Pass It Around",21,18,"NR- Six Pack Attack",3,null,"B","SARC- Sand Diggers",{"$f":"COUNTIF('Night ONE'!I$3:I$50,M14)+COUNTIF(I$3:I$83,M14)","v":3},4]
[13,"09:00:00","court 1",null,"GS- 50 Shades of Greystone","SO- Kiss My Ace",21,10,"SO- Kiss My Ace",11,null,"B","NR- Hit That Thang",{"$f":"COUNTIF('Night ONE'!I$3:I$50,M15)+COUNTIF(I$3:I$83,M15)","v":6},1]
[14,null,"court 2",null,"LKP- Will Play for Sets","LKP- Air Vectors",21,16,"LKP- Air Vectors",5,null,"B","SARC- I'd Hit That",{"$f":"COUNTIF('Night ONE'!I$3:I$50,M16)+COUNTIF(I$3:I$83,M16)","v":2},5]
[15,"09:30:00","court 1",null,"NR- Six Pack Attack","SARC- Volleywood",21,8,"NR- Six Pack Attack",13,null,"B","CT- Concrete Feet",{"$f":"COUNTIF('Night ONE'!I$3:I$50,M17)+COUNTIF(I$3:I$83,M17)","v":6},1]
[16,null,"court 2",null,"LKP- Casual Sets","LKP- Pass It Around",21,18,"LKP- Casual Sets",3,null,"B","GS- Rhymes with Stupid",{"$f":"COUNTIF('Night ONE'!I$3:I$50,M18)+COUNTIF(I$3:I$83,M18)","v":1},6]
[null,null,null,null,null,null,null,null,null,null,null,"C","SARC- $et for Life",{"$f":"COUNTIF('Night ONE'!I$3:I$50,M19)+COUNTIF(I$3:I$83,M19)","v":7},0]
[null,null,null,null,null,null,null,null,null,null,null,"C","SARC- Dirt Devils",{"$f":"COUNTIF('Night ONE'!I$3:I$50,M20)+COUNTIF(I$3:I$83,M20)","v":1},6]
[null,null,null,null,null,null,null,null,null,null,null,"C","SARC- Mojo Risin ",{"$f":"COUNTIF('Night ONE'!I$3:I$50,M21)+COUNTIF(I$3:I$83,M21)","v":0},7]
["SARC Red-   E VS F Brackets  (B Division)",null,null,null,null,null,"Score",null,null,null,null,"C","SARC- Good Bumps, Nice Sets",{"$f":"COUNTIF('Night ONE'!I$3:I$50,M22)+COUNTIF(I$3:I$83,M22)","v":5},2]
[null,null,null,null,"HOME","AWAY","W","L","Winner","Pt Diff",null,"C","HG- Swingrays",{"$f":"COUNTIF('Night ONE'!I$3:I$50,M23)+COUNTIF(I$3:I$83,M23)","v":4},3,null,null,null,"Teams on SARC Blue Courts"]
[1,"06:00:00","court 1",null,"SARC- Notorious D.I.G.","SARC- I'd Hit That",21,9,"SARC- Notorious D.I.G.",{"$f":"G24-H24","v":12},null,"C","LKP- Block You Like a Hurricane",{"$f":"COUNTIF('Night ONE'!I$3:I$50,M24)+COUNTIF(I$3:I$83,M24)","v":4},3,null,null,null,"SARC- Notorious D.I.G."]
[2,null,"court 2",null,"SARC- Raleigh Brawl","NR- Hit That Thang",21,8,"NR- Hit That Thang",{"$f":"G25-H25","v":13},null,"C","GS- Dirty Sets on Tuesday",{"$f":"COUNTIF('Night ONE'!I$3:I$50,M25)+COUNTIF(I$3:I$83,M25)","v":2},5,null,null,null,"SARC- Raleigh Brawl"]
[3,"06:30:00","court 1",null,"SARC- Sand Diggers","GS- Rhymes with Stupid",21,11,"SARC- Sand Diggers",10,null,"C","GS- Sand Gators",{"$f":"COUNTIF('Night ONE'!I$3:I$50,M26)+COUNTIF(I$3:I$83,M26)","v":5},2,null,null,null,"SARC- Sand Diggers"]
[4,null,"court 2",null,"LKP- Bumpn' Uglies","CT- Concrete Feet",21,13,"CT- Concrete Feet",8,null,"D","SARC- Mizfits",{"$f":"COUNTIF('Night ONE'!I$3:I$50,M27)+COUNTIF(I$3:I$83,M27)","v":0},7,null,null,null,"LKP- Bumpn' Uglies"]
[null,"19:00:00","court 1",null,"Exihibition Games-  PF Chang's vs Lynnwood Grill",null,null,null,null,null,null,"D","SARC- Sets on the Beach",{"$f":"COUNTIF('Night ONE'!I$3:I$50,M28)+COUNTIF(I$3:I$83,M28)","v":3},4,null,null,null,"SARC- I'd Hit That"]
[null,null,"court 2",null,"Exihibition Games- Red Robin vs Mosquito Joes",null,null,null,null,null,null,"D","SARC- Here for Beer",{"$f":"COUNTIF('Night ONE'!I$3:I$50,M29)+COUNTIF(I$3:I$83,M29)","v":3},4,null,null,null,"NR- Hit That Thang"]
[5,"07:30:00","court 1",null,"SARC- Notorious D.I.G.","NR- Hit That Thang",21,11,"SARC- Notorious D.I.G.",{"$f":"G30-H30","v":10},null,"D","SPN- Team Sponsors",{"$f":"COUNTIF('Night ONE'!I$3:I$50,M30)+COUNTIF(I$3:I$83,M30)","v":2},5,null,null,null,"GS- Rhymes with Stupid"]
[6,null,"court 2",null,"SARC- Raleigh Brawl","SARC- I'd Hit That",21,19,"SARC- Raleigh Brawl",2,null,"D","SARC- Unprotected Sets",{"$f":"COUNTIF('Night ONE'!I$3:I$50,M31)+COUNTIF(I$3:I$83,M31)","v":2},5,null,null,null,"CT- Concrete Feet"]
[7,"08:00:00","court 1",null,"SARC- Sand Diggers","CT- Concrete Feet",21,10,"CT- Concrete Feet",11,null,"D","SO- Team Kona",{"$f":"COUNTIF('Night ONE'!I$3:I$50,M32)+COUNTIF(I$3:I$83,M32)","v":6},1]
[8,null,"court 2",null,"LKP- Bumpn' Uglies","GS- Rhymes with Stupid",21,4,"LKP- Bumpn' Uglies",17,null,"D","GS- El Toro's Revenge",{"$f":"COUNTIF('Night ONE'!I$3:I$50,M33)+COUNTIF(I$3:I$83,M33)","v":6},1]
[9,"08:30:00","court 3",null,"CT- Concrete Feet","SARC- Raleigh Brawl",21,9,"CT- Concrete Feet",12,null,"D","CT- Dangerous When Set",{"$f":"COUNTIF('Night ONE'!I$3:I$50,M34)+COUNTIF(I$3:I$83,M34)","v":6},1]
[10,null,"court 4",null,"GS- Rhymes with Stupid","SARC- Notorious D.I.G.",21,14,"SARC- Notorious D.I.G.",7]
[11,"09:00:00","court 3",null,"NR- Hit That Thang","LKP- Bumpn' Uglies",21,19,"NR- Hit That Thang",2]
[12,null,"court 4",null,"SARC- I'd Hit That","SARC- Sand Diggers",22,20,"SARC- I'd Hit That",2]
[13,"09:30:00","court 3",null,"GS- Rhymes with Stupid","SARC- Raleigh Brawl",21,19,"GS- Rhymes with Stupid",2]
[14,null,"court 4",null,"CT- Concrete Feet","SARC- Notorious D.I.G.",21,9,"CT- Concrete Feet",12]
[15,"10:00:00","court 3",null,"SARC- I'd Hit That","LKP- Bumpn' Uglies",21,13,"LKP- Bumpn' Uglies",8]
[16,null,"court 4",null,"NR- Hit That Thang","SARC- Sand Diggers",25,23,"NR- Hit That Thang",2]
[]
[]
["Greysone-   C VS D Brackets  (C Division)",null,null,null,null,null,"Score"]
[null,null,null,null,"HOME","AWAY","W","L","Winner","Pt Diff",null,null,null,null,null,null,null,null,"Teams at Lake Park"]
[1,"06:00:00","court 1",null,"SARC- Dirt Devils","LKP- Block You Like a Hurricane",21,15,"LKP- Block You Like a Hurricane",{"$f":"G46-H46","v":6},null,null,null,null,null,null,null,null,"SARC- Dirt Devils"]
[2,null,"court 2",null,"SARC- $et for Life","HG- Swingrays",21,13,"SARC- $et for Life",{"$f":"G47-H47","v":8},null,null,null,null,null,null,null,null,"SARC- $et for Life"]
[3,"06:30:00","court 1",null,"SARC- Good Bumps, Nice Sets","GS- Sand Gators",21,18,"GS- Sand Gators",3,null,null,null,null,null,null,null,null,"SARC- Good Bumps, Nice Sets"]
[4,null,"court 2",null,"SARC- Mojo Risin ","GS- Dirty Sets on Tuesday",21,8,"GS- Dirty Sets on Tuesday",13,null,null,null,null,null,null,null,null,"SARC- Mojo Risin "]
[5,"07:00:00","court 1",null,"SARC- Dirt Devils","HG- Swingrays",23,21,"HG- Swingrays",2,null,null,null,null,null,null,null,null,"LKP- Block You Like a Hurricane"]
[6,null,"court 2",null,"SARC- $et for Life","LKP- Block You Like a Hurricane",21,12,"SARC- $et for Life",9,null,null,null,null,null,null,null,null,"HG- Swingrays"]
[7,"07:30:00","court 1",null,"SARC- Good Bumps, Nice Sets","GS- Dirty Sets on Tuesday",23,21,"SARC- Good Bumps, Nice Sets",2,null,null,null,null,null,null,null,null,"GS- Sand Gators"]
[8,null,"court 2",null,"SARC- Mojo Risin ","GS- Sand Gators",21,15,"GS- Sand Gators",6,null,null,null,null,null,null,null,null,"GS- Dirty Sets on Tuesday"]
[9,"08:00:00","court 1",null,"GS- Dirty Sets on Tuesday","SARC- $et for Life",21,16,"SARC- $et for Life",5]
[10,null,"court 2",null,"GS- Sand Gators","SARC- Dirt Devils",21,7,"GS- Sand Gators",14]
[11,"08:30:00","court 1",null,"HG- Swingrays","SARC- Mojo Risin ",21,9,"HG- Swingrays",12]
[12,null,"court 2",null,"LKP- Block You Like a Hurricane","SARC- Good Bumps, Nice Sets",21,10,"SARC- Good Bumps, Nice Sets",11]
[13,"09:00:00","court 1",null,"GS- Sand Gators","SARC- $et for Life",21,12,"SARC- $et for Life",9]
[14,null,"court 2",null,"GS- Dirty Sets on Tuesday","SARC- Dirt Devils",21,3,"GS- Dirty Sets on Tuesday",18]
[15,"09:30:00","court 1",null,"LKP- Block You Like a Hurricane","SARC- Mojo Risin ",21,13,"LKP- Block You Like a Hurricane",8]
[16,null,"court 2",null,"HG- Swingrays","SARC- Good Bumps, Nice Sets",23,21,"SARC- Good Bumps, Nice Sets",2]
[]
[]
["SARC Blue-   G VS H Brackets  (D Division)",null,null,null,null,null,"Score"]
[null,null,null,null,"HOME","AWAY","W","L","Winner","Pt Diff",null,null,null,null,null,null,null,null,"Teams at Greystone"]
[1,"06:00:00","court 3",null,"SARC- Sets on the Beach","SO- Team Kona",21,9,"SO- Team Kona",{"$f":"G66-H66","v":12},null,null,null,null,null,null,null,null,"SARC- Sets on the Beach"]
[2,null,"court 4",null,"SARC- Mizfits","SARC- Unprotected Sets",21,19,"SARC- Unprotected Sets",{"$f":"G67-H67","v":2},null,null,null,null,null,null,null,null,"SARC- Mizfits"]
[3,"06:30:00","court 3",null,"SPN- Team Sponsors","CT- Dangerous When Set",21,4,"CT- Dangerous When Set",17,null,null,null,null,null,null,null,null,"SPN- Team Sponsors"]
[4,null,"court 4",null,"SARC- Here for Beer","GS- El Toro's Revenge",21,5,"GS- El Toro's Revenge",16,null,null,null,null,null,null,null,null,"SARC- Here for Beer"]
[5,"07:00:00","court 3",null,"SARC- Sets on the Beach","SARC- Unprotected Sets",22,20,"SARC- Sets on the Beach",2,null,null,null,null,null,null,null,null,"SO- Team Kona"]
[6,null,"court 4",null,"SARC- Mizfits","SO- Team Kona",21,13,"SO- Team Kona",8,null,null,null,null,null,null,null,null,"SARC- Unprotected Sets"]
[7,"07:30:00","court 3",null,"SPN- Team Sponsors","GS- El Toro's Revenge",21,19,"GS- El Toro's Revenge",2,null,null,null,null,null,null,null,null,"CT- Dangerous When Set"]
[8,null,"court 4",null,"SARC- Here for Beer","CT- Dangerous When Set",21,10,"CT- Dangerous When Set",11,null,null,null,null,null,null,null,null,"GS- El Toro's Revenge"]
[9,"08:00:00","court 3",null,"GS- El Toro's Revenge","SARC- Mizfits",21,12,"GS- El Toro's Revenge",{"$f":"G74-H74","v":9}]
[10,null,"court 4",null,"CT- Dangerous When Set","SARC- Sets on the Beach",21,10,"CT- Dangerous When Set",{"$f":"G75-H75","v":11}]
[11,"08:30:00","court 1",null,"SARC- Unprotected Sets","SARC- Here for Beer",21,10,"SARC- Unprotected Sets",{"$f":"G76-H76","v":11}]
[12,null,"court 2",null,"SO- Team Kona","SPN- Team Sponsors",21,13,"SO- Team Kona",{"$f":"G77-H77","v":8}]
[null,"21:00:00","court 1",null,"Exihibition Game-  WINNERS for the 7 PM Game"]
[null,null,"court 2",null,"Exihibition Game- LOSERS of the 7 PM Game"]
[13,"09:30:00","court 1",null,"CT- Dangerous When Set","SARC- Mizfits",21,17,"CT- Dangerous When Set",{"$f":"G80-H80","v":4}]
[14,null,"court 2",null,"GS- El Toro's Revenge","SARC- Sets on the Beach",21,11,"GS- El Toro's Revenge",{"$f":"G81-H81","v":10}]
[15,"10:00:00","court 1",null,"SO- Team Kona","SARC- Here for Beer",21,4,"SO- Team Kona",{"$f":"G82-H82","v":17}]
[16,null,"court 2",null,"SARC- Unprotected Sets","SPN- Team Sponsors",23,21,"SPN- Team Sponsors",{"$f":"G83-H83","v":2}]

{"sheet":"NIGHT THREE","index":3,"n_rows":81,"n_cols":31,"rows_kept":81,"cut":false,"hidden":false,"merged":[[0,6,0,7],[21,6,21,7],[63,6,63,7],[42,6,42,7]]}
["SARC Red-   1st Vertical Bracket Cross-section of Divisions",null,null,null,null,null,"Score",null,null,null,null,null,"RESULTS- After Night Three"]
[null,null,null,null,"HOME","AWAY","W","L","Winner","Pt Diff",null,"Division","Teams","Win","Loss",".","PT DIFF",null,"Teams on SARC Red Courts",null,null,null,null,"Team","No Break","30 min","60 min",null,null,"ct 1","ct 2"]
[1,"06:00:00","court 1",null,"SARC- Raleigh Brawl","SARC- $et for Life",21,13,"SARC- $et for Life",{"$f":"G3-H3","v":8},null,"A","NR- Six Pack Attack",{"$f":"COUNTIF('Night ONE'!I$3:I$50,M3)+COUNTIF('NIGHT TWO'!I$3:I$83,M3)+COUNTIF(I$3:I$81,M3)","v":11},{"$f":"11-N3","v":0},null,105,null,"SARC- Raleigh Brawl",null,null,null,null,1,1,null,2,null,1,2,2]
[2,null,"court 3",null,"SARC- Sets on the Beach","LKP- Air Vectors",21,7,"LKP- Air Vectors",{"$f":"G4-H4","v":14},null,"A","SARC- Volleywood",{"$f":"COUNTIF('Night ONE'!I$3:I$50,M4)+COUNTIF('NIGHT TWO'!I$3:I$83,M4)+COUNTIF(I$3:I$81,M4)","v":8},3,null,64,null,"SARC- Mizfits",null,null,null,null,2,1,1,1,null,2,2,2]
[3,"06:30:00","court 1",null,"SARC- Mizfits","SARC- Dirt Devils",21,5,"SARC- Mizfits",16,null,"A","LKP- Air Vectors",{"$f":"COUNTIF('Night ONE'!I$3:I$50,M5)+COUNTIF('NIGHT TWO'!I$3:I$83,M5)+COUNTIF(I$3:I$81,M5)","v":8},3,null,52,null,"SARC- Notorious D.I.G.",null,null,null,null,9,1,2,null,null,9,2,2]
[4,null,"court 3",null,"SO- Kiss My Ace","SARC- Raleigh Brawl",21,15,"SO- Kiss My Ace",6,null,"A","SO- Kiss My Ace",{"$f":"COUNTIF('Night ONE'!I$3:I$50,M6)+COUNTIF('NIGHT TWO'!I$3:I$83,M6)+COUNTIF(I$3:I$81,M6)","v":8},3,null,28,null,"SARC- Sets on the Beach",null,null,null,null,10,1,1,1,null,10,2,2]
[5,"07:00:00","court 1",null,"LKP- Air Vectors","SARC- Notorious D.I.G.",21,17,"LKP- Air Vectors",4,null,"A","LKP- Will Play for Sets",{"$f":"COUNTIF('Night ONE'!I$3:I$50,M7)+COUNTIF('NIGHT TWO'!I$3:I$83,M7)+COUNTIF(I$3:I$81,M7)","v":7},4,null,17,null,"SARC- $et for Life",null,null,null,null,17,1,1,1,null,17,2,2]
[6,null,"court 3",null,"SARC- $et for Life","SARC- Mizfits",21,18,"SARC- Mizfits",3,null,"A","LKP- Casual Sets",{"$f":"COUNTIF('Night ONE'!I$3:I$50,M8)+COUNTIF('NIGHT TWO'!I$3:I$83,M8)+COUNTIF(I$3:I$81,M8)","v":6},5,null,6,null,"SO- Kiss My Ace",null,null,null,null,18,null,3,null,null,18,2,2]
[7,"07:30:00","court 1",null,"SARC- Dirt Devils","SARC- Sets on the Beach",21,18,"SARC- Dirt Devils",3,null,"A","LKP- Pass It Around",{"$f":"COUNTIF('Night ONE'!I$3:I$50,M9)+COUNTIF('NIGHT TWO'!I$3:I$83,M9)+COUNTIF(I$3:I$81,M9)","v":4},7,null,-11,null,"SARC- Dirt Devils",null,null,null,null,25,1,2,null,null,25,2,2]
[8,null,"court 3",null,"SO- Kiss My Ace","SARC- $et for Life",21,15,"SO- Kiss My Ace",6,null,"A","GS- 50 Shades of Greystone",{"$f":"COUNTIF('Night ONE'!I$3:I$50,M10)+COUNTIF('NIGHT TWO'!I$3:I$83,M10)+COUNTIF(I$3:I$81,M10)","v":2},9,null,-57,null,"LKP- Air Vectors",null,null,null,null,26,null,3,null,null,26,2,2]
[9,"08:00:00","court 1",null,"SARC- Raleigh Brawl","LKP- Air Vectors",21,7,"LKP- Air Vectors",14,null,"B","CT- Concrete Feet",{"$f":"COUNTIF('Night ONE'!I$3:I$50,M11)+COUNTIF('NIGHT TWO'!I$3:I$83,M11)+COUNTIF(I$3:I$81,M11)","v":10},1,null,85,null,null,null,null,null,null,null,null,null,null,null,null,{"$f":"SUM(AD3:AD10)","v":16},{"$f":"SUM(AE3:AE10)","v":16}]
[10,null,"court 3",null,"SARC- Notorious D.I.G.","SARC- Sets on the Beach",21,8,"SARC- Notorious D.I.G.",13,null,"B","LKP- Bumpn' Uglies",{"$f":"COUNTIF('Night ONE'!I$3:I$50,M12)+COUNTIF('NIGHT TWO'!I$3:I$83,M12)+COUNTIF(I$3:I$81,M12)","v":7},4,null,62]
[11,"08:30:00","court 1",null,"SARC- Mizfits","SO- Kiss My Ace",21,5,"SO- Kiss My Ace",16,null,"B","SARC- Sand Diggers",{"$f":"COUNTIF('Night ONE'!I$3:I$50,M13)+COUNTIF('NIGHT TWO'!I$3:I$83,M13)+COUNTIF(I$3:I$81,M13)","v":7},4,null,34]
[12,null,"court 3",null,"SARC- Notorious D.I.G.","SARC- Dirt Devils",21,19,"SARC- Notorious D.I.G.",2,null,"B","NR- Hit That Thang",{"$f":"COUNTIF('Night ONE'!I$3:I$50,M14)+COUNTIF('NIGHT TWO'!I$3:I$83,M14)+COUNTIF(I$3:I$81,M14)","v":7},4,null,12]
[13,"09:00:00","court 1",null,"SARC- $et for Life","SARC- Sets on the Beach",21,15,"SARC- $et for Life",6,null,"B","SARC- Notorious D.I.G.",{"$f":"COUNTIF('Night ONE'!I$3:I$50,M15)+COUNTIF('NIGHT TWO'!I$3:I$83,M15)+COUNTIF(I$3:I$81,M15)","v":5},6,null,3]
[14,null,"court 3",null,"LKP- Air Vectors","SARC- Dirt Devils",21,2,"LKP- Air Vectors",19,null,"B","SARC- I'd Hit That",{"$f":"COUNTIF('Night ONE'!I$3:I$50,M16)+COUNTIF('NIGHT TWO'!I$3:I$83,M16)+COUNTIF(I$3:I$81,M16)","v":4},7,null,-12]
[15,"09:30:00","court 1",null,"SO- Kiss My Ace","SARC- Notorious D.I.G.",21,17,"SO- Kiss My Ace",4,null,"B","SARC- Raleigh Brawl",{"$f":"COUNTIF('Night ONE'!I$3:I$50,M17)+COUNTIF('NIGHT TWO'!I$3:I$83,M17)+COUNTIF(I$3:I$81,M17)","v":4},7,null,-40]
[16,null,"court 3",null,"SARC- Raleigh Brawl","SARC- Mizfits",21,15,"SARC- Raleigh Brawl",6,null,"B","GS- Rhymes with Stupid",{"$f":"COUNTIF('Night ONE'!I$3:I$50,M18)+COUNTIF('NIGHT TWO'!I$3:I$83,M18)+COUNTIF(I$3:I$81,M18)","v":1},10,null,-99]
[null,null,null,null,null,null,null,null,null,null,null,"C","SARC- $et for Life",{"$f":"COUNTIF('Night ONE'!I$3:I$50,M19)+COUNTIF('NIGHT TWO'!I$3:I$83,M19)+COUNTIF(I$3:I$81,M19)","v":9},2,null,67]
[null,null,null,null,null,null,null,null,null,null,null,"C","GS- Sand Gators",{"$f":"COUNTIF('Night ONE'!I$3:I$50,M20)+COUNTIF('NIGHT TWO'!I$3:I$83,M20)+COUNTIF(I$3:I$81,M20)","v":8},3,null,43]
[null,null,null,null,null,null,null,null,null,null,null,"C","SARC- Good Bumps, Nice Sets",{"$f":"COUNTIF('Night ONE'!I$3:I$50,M21)+COUNTIF('NIGHT TWO'!I$3:I$83,M21)+COUNTIF(I$3:I$81,M21)","v":7},4,null,12]
["SARC Blue-   2nd Vertical Bracket Cross-section of Divisions",null,null,null,null,null,"Score",null,null,null,null,"C","LKP- Block You Like a Hurricane",{"$f":"COUNTIF('Night ONE'!I$3:I$50,M22)+COUNTIF('NIGHT TWO'!I$3:I$83,M22)+COUNTIF(I$3:I$81,M22)","v":5},6,null,-8]
[null,null,null,null,"HOME","AWAY","W","L","Winner","Pt Diff",null,"C","HG- Swingrays",{"$f":"COUNTIF('Night ONE'!I$3:I$50,M23)+COUNTIF('NIGHT TWO'!I$3:I$83,M23)+COUNTIF(I$3:I$81,M23)","v":5},6,null,-12,null,"Teams on SARC Blue Courts"]
[1,"06:00:00","court 2",null,"LKP- Bumpn' Uglies","SARC- Mojo Risin ",21,8,"LKP- Bumpn' Uglies",{"$f":"G24-H24","v":13},null,"C","GS- Dirty Sets on Tuesday",{"$f":"COUNTIF('Night ONE'!I$3:I$50,M24)+COUNTIF('NIGHT TWO'!I$3:I$83,M24)+COUNTIF(I$3:I$81,M24)","v":3},8,null,-21,null,"LKP- Bumpn' Uglies"]
[2,null,"court 4",null,"SPN- Team Sponsors","LKP- Pass It Around",21,4,"LKP- Pass It Around",{"$f":"G25-H25","v":17},null,"C","SARC- Dirt Devils",{"$f":"COUNTIF('Night ONE'!I$3:I$50,M25)+COUNTIF('NIGHT TWO'!I$3:I$83,M25)+COUNTIF(I$3:I$81,M25)","v":2},9,null,-94,null,"SARC- Here for Beer"]
[3,"06:30:00","court 2",null,"SARC- Here for Beer","SARC- Good Bumps, Nice Sets",21,16,"SARC- Good Bumps, Nice Sets",5,null,"C","SARC- Mojo Risin ",{"$f":"COUNTIF('Night ONE'!I$3:I$50,M26)+COUNTIF('NIGHT TWO'!I$3:I$83,M26)+COUNTIF(I$3:I$81,M26)","v":1},10,null,-87,null,"SARC- Sand Diggers"]
[4,null,"court 4",null,"SARC- Volleywood","LKP- Bumpn' Uglies",21,18,"SARC- Volleywood",3,null,"D","CT- Dangerous When Set",{"$f":"COUNTIF('Night ONE'!I$3:I$50,M27)+COUNTIF('NIGHT TWO'!I$3:I$83,M27)+COUNTIF(I$3:I$81,M27)","v":9},2,null,74,null,"SPN- Team Sponsors"]
[5,"07:00:00","court 2",null,"LKP- Pass It Around","SARC- Sand Diggers",21,15,"SARC- Sand Diggers",6,null,"D","GS- El Toro's Revenge",{"$f":"COUNTIF('Night ONE'!I$3:I$50,M28)+COUNTIF('NIGHT TWO'!I$3:I$83,M28)+COUNTIF(I$3:I$81,M28)","v":6},5,null,29,null,"SARC- Mojo Risin "]
[6,null,"court 4",null,"SARC- Mojo Risin ","SARC- Here for Beer",21,7,"SARC- Here for Beer",14,null,"D","SO- Team Kona",{"$f":"COUNTIF('Night ONE'!I$3:I$50,M29)+COUNTIF('NIGHT TWO'!I$3:I$83,M29)+COUNTIF(I$3:I$81,M29)","v":6},5,null,-1,null,"SARC- Volleywood"]
[7,"07:30:00","court 2",null,"SARC- Good Bumps, Nice Sets","SPN- Team Sponsors",21,10,"SARC- Good Bumps, Nice Sets",11,null,"D","SARC- Unprotected Sets",{"$f":"COUNTIF('Night ONE'!I$3:I$50,M30)+COUNTIF('NIGHT TWO'!I$3:I$83,M30)+COUNTIF(I$3:I$81,M30)","v":5},6,null,-19,null,"SARC- Good Bumps, Nice Sets"]
[8,null,"court 4",null,"SARC- Volleywood","SARC- Mojo Risin ",21,4,"SARC- Volleywood",17,null,"D","SARC- Here for Beer",{"$f":"COUNTIF('Night ONE'!I$3:I$50,M31)+COUNTIF('NIGHT TWO'!I$3:I$83,M31)+COUNTIF(I$3:I$81,M31)","v":4},7,null,-46,null,"LKP- Pass It Around"]
[9,"08:00:00","court 2",null,"LKP- Bumpn' Uglies","LKP- Pass It Around",21,9,"LKP- Bumpn' Uglies",12,null,"D","SARC- Sets on the Beach",{"$f":"COUNTIF('Night ONE'!I$3:I$50,M32)+COUNTIF('NIGHT TWO'!I$3:I$83,M32)+COUNTIF(I$3:I$81,M32)","v":3},8,null,-57]
[10,null,"court 4",null,"SARC- Sand Diggers","SPN- Team Sponsors",21,8,"SARC- Sand Diggers",13,null,"D","SARC- Mizfits",{"$f":"COUNTIF('Night ONE'!I$3:I$50,M33)+COUNTIF('NIGHT TWO'!I$3:I$83,M33)+COUNTIF(I$3:I$81,M33)","v":2},9,null,-55]
[11,"08:30:00","court 2",null,"SARC- Here for Beer","SARC- Volleywood",21,3,"SARC- Volleywood",18,null,"D","SPN- Team Sponsors",{"$f":"COUNTIF('Night ONE'!I$3:I$50,M34)+COUNTIF('NIGHT TWO'!I$3:I$83,M34)+COUNTIF(I$3:I$81,M34)","v":2},9,null,-74]
[12,null,"court 4",null,"SARC- Sand Diggers","SARC- Good Bumps, Nice Sets",21,8,"SARC- Sand Diggers",13]
[13,"09:00:00","court 2",null,"SARC- Mojo Risin ","SPN- Team Sponsors",21,8,"SARC- Mojo Risin ",13]
[14,null,"court 4",null,"LKP- Pass It Around","SARC- Good Bumps, Nice Sets",21,12,"LKP- Pass It Around",9]
[15,"09:30:00","court 2",null,"SARC- Volleywood","SARC- Sand Diggers",21,14,"SARC- Sand Diggers",7]
[16,null,"court 4",null,"LKP- Bumpn' Uglies","SARC- Here for Beer",21,10,"LKP- Bumpn' Uglies",11]
[]
[]
[]
["LAKE PARK-   3rd Vertical Bracket Cross-section of Divisions",null,null,null,null,null,"Score"]
[null,null,null,null,"HOME","AWAY","W","L","Winner","Pt Diff"]
[1,"06:00:00","court 1",null,"NR- Hit That Thang","HG- Swingrays",21,2,"NR- Hit That Thang",{"$f":"G45-H45","v":19},null,null,null,null,null,null,null,null,"Teams at Lake Park"]
[2,null,"court 2",null,"SO- Team Kona","NR- Six Pack Attack",21,2,"NR- Six Pack Attack",{"$f":"G46-H46","v":19},null,null,null,null,null,null,null,null,"NR- Hit That Thang"]
[3,"06:30:00","court 1",null,"SARC- Unprotected Sets","LKP- Block You Like a Hurricane",22,20,"SARC- Unprotected Sets",2,null,null,null,null,null,null,null,null,"SARC- Unprotected Sets"]
[4,null,"court 2",null,"LKP- Casual Sets","NR- Hit That Thang",21,14,"LKP- Casual Sets",7,null,null,null,null,null,null,null,null,"SARC- I'd Hit That"]
[5,"07:00:00","court 1",null,"NR- Six Pack Attack","SARC- I'd Hit That",21,17,"NR- Six Pack Attack",4,null,null,null,null,null,null,null,null,"SO- Team Kona"]
[6,null,"court 2",null,"HG- Swingrays","SARC- Unprotected Sets",22,20,"SARC- Unprotected Sets",2,null,null,null,null,null,null,null,null,"HG- Swingrays"]
[7,"07:30:00","court 1",null,"LKP- Block You Like a Hurricane","SO- Team Kona",21,13,"LKP- Block You Like a Hurricane",8,null,null,null,null,null,null,null,null,"LKP- Casual Sets"]
[8,null,"court 2",null,"LKP- Casual Sets","HG- Swingrays",21,15,"LKP- Casual Sets",6,null,null,null,null,null,null,null,null,"LKP- Block You Like a Hurricane"]
[9,"08:00:00","court 1",null,"NR- Hit That Thang","NR- Six Pack Attack",21,14,"NR- Six Pack Attack",7,null,null,null,null,null,null,null,null,"NR- Six Pack Attack"]
[10,null,"court 2",null,"SARC- I'd Hit That","SO- Team Kona",21,7,"SARC- I'd Hit That",14]
[11,"08:30:00","court 1",null,"SARC- Unprotected Sets","LKP- Casual Sets",21,11,"LKP- Casual Sets",10]
[12,null,"court 2",null,"SARC- I'd Hit That","LKP- Block You Like a Hurricane",21,16,"SARC- I'd Hit That",5]
[13,"09:00:00","court 1",null,"HG- Swingrays","SO- Team Kona",21,16,"HG- Swingrays",5]
[14,null,"court 2",null,"NR- Six Pack Attack","LKP- Block You Like a Hurricane",21,15,"NR- Six Pack Attack",6]
[15,"09:30:00","court 1",null,"LKP- Casual Sets","SARC- I'd Hit That",21,10,"LKP- Casual Sets",11]
[16,null,"court 2",null,"NR- Hit That Thang","SARC- Unprotected Sets",21,3,"SARC- Unprotected Sets",18]
[]
[]
[]
["GREYSTONE-   4th Vertical Bracket Cross-section of Divisions",null,null,null,null,null,"Score"]
[null,null,null,null,"HOME","AWAY","W","L","Winner","Pt Diff",null,null,null,null,null,null,null,null,"Teams at Greystone"]
[1,"06:00:00","court 1",null,"CT- Concrete Feet","GS- Dirty Sets on Tuesday",21,10,"CT- Concrete Feet",{"$f":"G66-H66","v":11},null,null,null,null,null,null,null,null,"CT- Concrete Feet"]
[2,null,"court 2",null,"CT- Dangerous When Set","GS- 50 Shades of Greystone",21,6,"CT- Dangerous When Set",{"$f":"G67-H67","v":15},null,null,null,null,null,null,null,null,"GS- El Toro's Revenge"]
[3,"06:30:00","court 1",null,"GS- El Toro's Revenge","GS- Sand Gators",21,20,"GS- Sand Gators",1,null,null,null,null,null,null,null,null,"GS- Rhymes with Stupid"]
[4,null,"court 2",null,"LKP- Will Play for Sets","CT- Concrete Feet",21,9,"CT- Concrete Feet",12,null,null,null,null,null,null,null,null,"CT- Dangerous When Set"]
[5,"07:00:00","court 1",null,"GS- 50 Shades of Greystone","GS- Rhymes with Stupid",21,11,"GS- 50 Shades of Greystone",10,null,null,null,null,null,null,null,null,"GS- Dirty Sets on Tuesday"]
[6,null,"court 2",null,"GS- Dirty Sets on Tuesday","GS- El Toro's Revenge",21,20,"GS- Dirty Sets on Tuesday",1,null,null,null,null,null,null,null,null,"LKP- Will Play for Sets"]
[7,"07:30:00","court 1",null,"GS- Sand Gators","CT- Dangerous When Set",21,13,"GS- Sand Gators",8,null,null,null,null,null,null,null,null,"GS- Sand Gators"]
[8,null,"court 2",null,"LKP- Will Play for Sets","GS- Dirty Sets on Tuesday",21,16,"LKP- Will Play for Sets",5,null,null,null,null,null,null,null,null,"GS- 50 Shades of Greystone"]
[9,"08:00:00","court 1",null,"CT- Concrete Feet","GS- 50 Shades of Greystone",21,17,"CT- Concrete Feet",4]
[10,null,"court 2",null,"GS- Rhymes with Stupid","CT- Dangerous When Set",21,11,"CT- Dangerous When Set",10]
[11,"08:30:00","court 1",null,"GS- El Toro's Revenge","LKP- Will Play for Sets",21,8,"LKP- Will Play for Sets",13]
[12,null,"court 2",null,"GS- Rhymes with Stupid","GS- Sand Gators",21,9,"GS- Sand Gators",12]
[13,"09:00:00","court 1",null,"GS- Dirty Sets on Tuesday","CT- Dangerous When Set",21,20,"CT- Dangerous When Set",1]
[14,null,"court 2",null,"GS- 50 Shades of Greystone","GS- Sand Gators",21,9,"GS- 50 Shades of Greystone",12]
[15,"09:30:00","court 1",null,"LKP- Will Play for Sets","GS- Rhymes with Stupid",21,8,"LKP- Will Play for Sets",13]
[16,null,"court 2",null,"CT- Concrete Feet","GS- El Toro's Revenge",21,6,"CT- Concrete Feet",15]

{"sheet":"Championship Night","index":4,"n_rows":69,"n_cols":21,"rows_kept":69,"cut":false,"hidden":false,"merged":[[4,15,7,15]]}
[null,"Growler Championship Night- 32 Team Single Elimination",null,null,null,null,null,null,null,null,null,null,null,null,null,"Raffle","Final 4",null,"Championship"]
[]
[]
[null,"17:30:00",null,"18:00:00",null,"18:30:00",null,"19:00:00",null,"19:30:00",null,"20:00:00",null,"20:30:00",null,"21:00:00","21:30:00",null,"22:00:00"]
[null,null,null,null,null,null,null,null,null,null,null,null,null,null,null,"Break for Announce-ments and Raffle"]
[null,null,null,null,1,"SARC- Volleywood"]
[null,null,null,null,null,1,null,null,null,"SARC- Volleywood"]
[null,null,null,null,32,"SARC- Mojo Risin "]
[null,null,null,null,null,"court 1",null,null,null,17,null,null,null,"SARC- Volleywood"]
[16,"SARC- I'd Hit That"]
[null,2]
[17,"SARC- Raleigh Brawl",null,null,null,null,null,null,null,"court 1"]
[null,"court 4",null,null,null,null,null,null,null,null,null,null,null,25,null,null,"SARC- Volleywood"]
[null,null,null,null,null,null,8,"GS- Sand Gators"]
[null,null,null,null,null,null,null,3,null,null,null,"GS- Sand Gators"]
[null,null,null,null,null,null,25,"LKP- Block You Like a Hurricane"]
[null,null,null,null,null,null,null,"court 4",null,null,null,18,null,"LKP- Will Play for Sets"]
[null,null,9,"LKP- Will Play for Sets",null,null,null,null,null,null,null,null,null,"court 1"]
[null,null,null,4,null,null,null,null,null,null,null,"LKP- Will Play for Sets"]
[null,null,24,"GS- El Toro's Revenge",null,null,null,null,null,null,null,"court 4"]
[null,null,null,"court 1",null,null,null,null,null,null,null,null,null,null,null,null,29,null,"SARC- Volleywood"]
[null,null,null,null,4,"SARC- Sand Diggers",null,null,"**Winner pick of seed"]
[null,null,null,null,null,5,null,null,null,"SARC- Sand Diggers"]
[null,null,null,null,29,"SARC- Sets on the Beach"]
[null,null,null,null,null,"court 4",null,null,null,19,null,null,null,"SARC- Sand Diggers"]
[13,"CT- Dangerous When Set"]
[null,6,null,null,null,null,null,null,null,"HG- Swingrays"]
[20,"HG- Swingrays",null,null,null,null,null,null,null,"court 4"]
[null,"court 1",null,null,null,null,null,null,null,null,null,null,null,26,null,null,"LKP- Air Vectors"]
[null,null,null,null,null,null,5,"LKP- Air Vectors",null,null,null,null,null,null,null,null,"court 1"]
[null,null,null,null,null,null,null,7,null,null,null,"LKP- Air Vectors"]
[null,null,null,null,null,null,28,"SARC- Mizfits"]
[null,null,null,null,null,null,null,"court 1",null,null,null,20,null,"LKP- Air Vectors"]
[null,null,12,"LKP- Casual Sets",null,null,null,null,null,null,null,null,null,"court 4"]
[null,null,null,8,null,null,null,null,null,null,null,"LKP- Casual Sets"]
[null,null,21,"GS- 50 Shades of Greystone",null,null,null,null,null,null,null,"court 1"]
[null,null,null,"court 4"]
[null,null,null,null,2,"SO- Kiss My Ace",null,null,null,null,null,null,null,null,null,null,null,null,31,null,"SARC- Volleywood"]
[null,null,null,null,null,9,null,null,null,"SO- Kiss My Ace"]
[null,null,null,null,31,"SARC- Dirt Devils"]
[null,null,null,null,null,"court 2",null,null,null,21,null,null,null,"SO- Kiss My Ace"]
[15,"SARC- Good Bumps, Nice Sets"]
[null,10,null,null,null,null,null,null,null,"SARC- Good Bumps, Nice Sets"]
[18,"SO- Team Kona",null,null,null,null,null,null,null,"court 2"]
[null,"court 3",null,null,null,null,null,null,null,null,null,null,null,27,null,null,"SARC- $et for Life"]
[null,null,null,null,null,null,7,"SARC- $et for Life"]
[null,null,null,null,null,null,null,11,null,null,null,"SARC- $et for Life"]
[null,null,null,null,null,null,26,"GS- Dirty Sets on Tuesday"]
[null,null,null,null,null,null,null,"court 3",null,null,null,22,null,"SARC- $et for Life"]
[null,null,10,"LKP- Pass It Around",null,null,null,null,null,null,null,null,null,"court 2"]
[null,null,null,12,null,null,null,null,null,null,null,"LKP- Pass It Around"]
[null,null,23,"SARC- Here for Beer",null,null,null,null,null,null,null,"court 3"]
[null,null,null,"court 2",null,null,null,null,null,null,null,null,null,null,null,null,30,null,"SARC- $et for Life"]
[null,null,null,null,3,"NR- Six Pack Attack"]
[null,null,null,null,null,13,null,null,null,"NR- Six Pack Attack",null,null,null,null,null,null,null,null,"court 1"]
[null,null,null,null,30,"GS- Rhymes with Stupid"]
[null,null,null,null,null,"court 3",null,null,null,23,null,null,null,"NR- Six Pack Attack"]
[14,"NR- Hit That Thang"]
[null,14]
[19,"SARC- Notorious D.I.G.",null,null,null,null,null,null,null,"court 3"]
[null,"court 2",null,null,null,null,null,null,null,null,null,null,null,28,null,null,"NR- Six Pack Attack"]
[null,null,null,null,null,null,6,"CT- Concrete Feet",null,null,null,null,null,null,null,null,"court 2"]
[null,null,null,null,null,null,null,15,null,null,null,"CT- Concrete Feet"]
[null,null,null,null,null,null,27,"SPN- Team Sponsors"]
[null,null,null,null,null,null,null,"court 2",null,null,null,24,null,"LKP- Bumpn' Uglies"]
[null,null,11,"LKP- Bumpn' Uglies",null,null,null,null,null,null,null,null,null,"court 3"]
[null,null,null,16,null,null,null,null,null,null,null,"LKP- Bumpn' Uglies"]
[null,null,22,"SARC- Unprotected Sets",null,null,null,null,null,null,null,"court 2"]
[null,null,null,"court 3"]

{"sheet":"Team SB Donations","index":5,"n_rows":39,"n_cols":11,"rows_kept":39,"cut":false,"hidden":false,"merged":[]}
[null,"St Baldrick's Download Team Report",null,null,"2015-08-18"]
[]
[]
["Growler Team Rank","CLUB","Team Name","# of Participants","Team Captain Full Name","Team Captain Display Name","Team Fundraising Goal","Amount Raised","Sponsorships earned","Sponsors acquired or other SB credits","Total"]
[1,"SARC","Sand Diggers",3,"John M Marks","John Marks",750,5452,500,"Rabon and Dailey, Sports and More",{"$f":"SUM(H5:I5)","v":5952}]
[2,"SARC","The Zack Attack Pack",4,"Bill  Green","Bill Green",500,2775,null,null,2775]
[3,"SO","Kiss My Ace!",5,"Olaf  Schroeder","Olaf Schroeder",300,2555,null,null,2555]
[4,"SARC","Volleywood",7,"Robert  Rauth","Robert R.",1000,2345,null,null,2345]
[5,"GS","Sand Gators",1,"Greystone  Sand Gators","Greystone Sand Gators",500,770,1500,"Triangle Orthopedic, NC Spec. Hospital",2270]
[6,"SARC","Springdale Mizfits",8,"Jay W Cupstid","Jay Cupstid",2000,1723,300,"BTM Landscape",2023]
[7,"SARC","$et For Life",11,"Dan  Schaefer","Dan Schaefer",1700,1490,450,"Lexus, Sharky's",1940]
[8,"LPK","LKP- Pass it Around",2,"Gregg  Klofenstine","Gregg Klofenstine",1500,1645,null,null,1645]
[9,"SARC","You've Been Served",1,"Ryan D Oxendine","Ryan Oxendine",300,0,1500,"Oxendine- Price attorneys",1500]
[10,"SO","Team Kona",2,"J  maierhofer","J maierhofer",5000,1437,null,null,1437]
[11,"CT","Dangerous When Set",6,"Thomas M Beaulieu","Thomas Beaulieu",500,1185,175,"CT - Shave Santa",1360]
[12,"SARC","Sets on the Beach",8,"Jennifer H Daft","Jennifer Daft",1000,1000,null,null,1000]
[13,"GS","Setsual Healing",2,"Michael D Braga","Michael Braga",1000,950,null,null,950]
[14,"SARC","Raleigh Brawl",1,"Phil  apostolico","Phil apostolico",1500,0,950,"Markham family, Mass Mutual ",950]
[15,"SARC","Good Bumps, Nice Sets",4,"Haleigh  McCollum","Haleigh McCollum",1000,585,350,"NutriLawn, Produce Box",935]
[16,"SARC","I'd Hit That",5,"Holly C Mabe","Holly Mabe",1000,932,null,null,932]
[17,"SARC","Mojo Rising",1,"Beth  Munoz","Team Mojo Rising",1000,845,null,null,845]
[18,"LPK","Bumpn' Uglies",1,"Kenneth  Muller","Kenneth Muller",500,450,250,"Triangle Stainless",700]
[19,"HG","Swingrays",1,"Glenn  Lucas","Glenn Lucas",800,680,null,null,680]
[20,"LPK","Air vectors",2,"Lawrence R Lee","Lawrence Lee",300,655,null,null,655]
[21,"CT","Concrete Feet",3,"John J Willey","John Willey",240,455,175,"CT - Shave Santa",630]
[22,"SARC","Dirt Devils",3,"Beth  Farrell","Beth Farrell",750,560,null,null,560]
[23,"LPK","Casual Sets",1,"Dave  Radcliffe","Dave Radcliffe",250,470,null,null,470]
[24,"GS","El Toro's Revenge",1,"El Toro's  Revenge","El Toro's Revenge",300,450,null,null,450]
[25,"NR","Hit That Thang",1,"Steve  Hamilton","Steve Hamilton",250,435,null,null,435]
[26,"LPK","Block you like a hurricane",7,"James  Perotti","James Perotti",210,385,null,null,385]
[27,"NR","Six Pack Attack Rev 3.0",1,"Robby T White","Robby White",250,370,null,null,370]
[28,"LPK","Will Play For Sets",3,"John D Allen","John Allen",210,230,100,"St Baldrick donation",330]
[29,"GS","Rhymes With Stupid",2,"Greg  Wait","Greg Wait",1250,300,null,null,300]
[30,"GS","Fifty Shades of Greystone",3,"Susan S Lamb","Susan Lamb",250,270,null,null,270]
[31,"SARC","Notorious DIG",3,"Matt  Vaughn","Matt Vaughn",180,255,null,null,255]
[]
[]
[null,null,"Roadhouse Bartners",2,"Annie B Stump","Annie Stump",2000,3813]
[null,"CT","Shave Santa",1,"Loyd  Graves","Loyd Graves",500,370]

{"sheet":"GPI Ranking-Seeding","index":6,"n_rows":36,"n_cols":25,"rows_kept":36,"cut":false,"hidden":false,"merged":[[0,4,0,6],[0,2,0,3],[0,7,0,9],[0,10,0,11],[1,7,1,8]]}
[null,null,"#1- Strength of Schedule",null,"#2- NUMBER OF WINS",null,null,"#3- POINT DIFFERENTIAL",null,null,"#4- MONEY FOR ST BALDRICKS",null,null,null,null,null,null,"Point Differential"]
[null,"Method for Determining Points >>>>>>>>>>>>>>>","Points","A= 8 pts,      B=5 pts,       C= 2 pts,      D= 0 pts",null,"Points","= # of Wins","Ranking",null,"=(32-Rank)/7","Ranking","=(32-Rank)/5","Total Pts from Wins, Pt Diff, Tier Diff, Money raised",null,null,null,null,"Rank","Division","Teams","Win","Loss","Head to Head","PT DIFF"]
[null,"Point Variance",null,8,null,null,11,null,null,4.4000000000000004,null,6,null,null,null,null,null,1,"A","NR- Six Pack Attack",null,null,null,105,1]
["Ranking","Teams","Team Level","Points for Tier Difficulty","Win","Loss","Points from W/L","POINT DIFFERENTIAL","Pt Diff Rank","Points from Pt Diff ","Rank- Money Raised for St Baldricks or Sponsorship","POINTS for Money Raised for St Baldricks or Sponsorship","TOTAL POINTS",null,null,null,null,2,"B","CT- Concrete Feet",null,null,null,85,2]
[1,"SARC- Volleywood","A",{"$f":"IF(C5=\"A\",8,IF(C5=\"B\",5,IF(C5=\"C\",2,0)))","v":8},{"$f":"VLOOKUP(B5,'NIGHT THREE'!M$3:N$34,2,FALSE)","v":8},{"$f":"VLOOKUP(B5,'NIGHT THREE'!M$3:O$34,3,FALSE)","v":3},{"$f":"E5","v":8},64,5,{"$f":"(32-I5)/7","v":3.8571428571428572},5,{"$f":"(32-K5)/5","v":5.4},{"$f":"G5+J5+D5+L5","v":25.25714285714286},null,null,null,null,3,"D","CT- Dangerous When Set",null,null,null,74,3]
[2,"SO- Kiss My Ace","A",8,{"$f":"VLOOKUP(B6,'NIGHT THREE'!M$3:N$34,2,FALSE)","v":8},{"$f":"VLOOKUP(B6,'NIGHT THREE'!M$3:O$34,3,FALSE)","v":3},8,28,10,3.1428571428571428,3,5.8,24.942857142857143,null,null,null,null,4,"C","SARC- $et for Life",null,null,null,67,4]
[3,"NR- Six Pack Attack","A",8,{"$f":"VLOOKUP(B7,'NIGHT THREE'!M$3:N$34,2,FALSE)","v":11},{"$f":"VLOOKUP(B7,'NIGHT THREE'!M$3:O$34,3,FALSE)","v":0},11,105,1,4.4285714285714288,27,1,24.428571428571431,null,null,null,null,5,"A","SARC- Volleywood",null,null,null,64,5]
[4,"LKP- Air Vectors","A",8,{"$f":"VLOOKUP(B8,'NIGHT THREE'!M$3:N$34,2,FALSE)","v":8},{"$f":"VLOOKUP(B8,'NIGHT THREE'!M$3:O$34,3,FALSE)","v":3},8,52,7,3.5714285714285716,20,2.4,21.971428571428568,null,null,null,null,6,"B","LKP- Bumpn' Uglies",null,null,null,62,6]
[5,"SARC- Sand Diggers","B",5,{"$f":"VLOOKUP(B9,'NIGHT THREE'!M$3:N$34,2,FALSE)","v":7},{"$f":"VLOOKUP(B9,'NIGHT THREE'!M$3:O$34,3,FALSE)","v":4},7,34,9,3.2857142857142856,1,6.2,21.485714285714284,null,null,null,null,7,"A","LKP- Air Vectors",null,null,null,52,7]
[6,"CT- Concrete Feet","B",5,{"$f":"VLOOKUP(B10,'NIGHT THREE'!M$3:N$34,2,FALSE)","v":10},{"$f":"VLOOKUP(B10,'NIGHT THREE'!M$3:O$34,3,FALSE)","v":1},10,85,2,4.2857142857142856,26,1.2,20.485714285714284,null,null,null,null,8,"C","GS- Sand Gators",null,null,null,43,8]
[7,"SARC- $et for Life","C",2,{"$f":"VLOOKUP(B11,'NIGHT THREE'!M$3:N$34,2,FALSE)","v":9},{"$f":"VLOOKUP(B11,'NIGHT THREE'!M$3:O$34,3,FALSE)","v":2},9,67,4,4,6,5.2,20.2,null,null,null,null,9,"B","SARC- Sand Diggers",null,null,null,34,9]
[8,"GS- Sand Gators","C",2,{"$f":"VLOOKUP(B12,'NIGHT THREE'!M$3:N$34,2,FALSE)","v":8},{"$f":"VLOOKUP(B12,'NIGHT THREE'!M$3:O$34,3,FALSE)","v":3},8,43,8,3.4285714285714284,4,5.6,19.028571428571428,null,null,null,null,10,"A","SO- Kiss My Ace",null,null,null,28,10]
[9,"LKP- Will Play for Sets","A",8,{"$f":"VLOOKUP(B13,'NIGHT THREE'!M$3:N$34,2,FALSE)","v":7},{"$f":"VLOOKUP(B13,'NIGHT THREE'!M$3:O$34,3,FALSE)","v":4},7,17,11,3,28,0.8,18.8,null,null,null,null,11,"A","LKP- Will Play for Sets",null,null,null,27,11]
[10,"LKP- Pass It Around","A",8,{"$f":"VLOOKUP(B14,'NIGHT THREE'!M$3:N$34,2,FALSE)","v":4},{"$f":"VLOOKUP(B14,'NIGHT THREE'!M$3:O$34,3,FALSE)","v":7},4,-11,19,1.8571428571428572,8,4.8,18.657142857142858,null,null,null,null,12,"D","GS- El Toro's Revenge",null,null,null,19,12]
[11,"LKP- Bumpn' Uglies","B",5,{"$f":"VLOOKUP(B15,'NIGHT THREE'!M$3:N$34,2,FALSE)","v":7},{"$f":"VLOOKUP(B15,'NIGHT THREE'!M$3:O$34,3,FALSE)","v":4},7,62,6,3.7142857142857144,18,2.8,18.514285714285716,null,null,null,null,13,"B","NR- Hit That Thang",null,null,null,12,13]
[12,"LKP- Casual Sets","A",8,{"$f":"VLOOKUP(B16,'NIGHT THREE'!M$3:N$34,2,FALSE)","v":6},{"$f":"VLOOKUP(B16,'NIGHT THREE'!M$3:O$34,3,FALSE)","v":5},6,6,15,2.4285714285714284,22,2,18.428571428571431,null,null,null,null,14,"C","SARC- Good Bumps, Nice Sets",null,null,null,12,14]
[13,"CT- Dangerous When Set","D",0,{"$f":"VLOOKUP(B17,'NIGHT THREE'!M$3:N$34,2,FALSE)","v":9},{"$f":"VLOOKUP(B17,'NIGHT THREE'!M$3:O$34,3,FALSE)","v":2},9,74,3,4.1428571428571432,11,4.2,17.342857142857142,null,null,null,null,15,"A","LKP- Casual Sets",null,null,null,6,15]
[14,"NR- Hit That Thang","B",5,{"$f":"VLOOKUP(B18,'NIGHT THREE'!M$3:N$34,2,FALSE)","v":7},{"$f":"VLOOKUP(B18,'NIGHT THREE'!M$3:O$34,3,FALSE)","v":4},7,12,13,2.7142857142857144,24,1.6,16.314285714285717,null,null,null,null,16,"B","SARC- Notorious D.I.G.",null,null,null,3,16]
[15,"SARC- Good Bumps, Nice Sets","C",2,{"$f":"VLOOKUP(B19,'NIGHT THREE'!M$3:N$34,2,FALSE)","v":7},{"$f":"VLOOKUP(B19,'NIGHT THREE'!M$3:O$34,3,FALSE)","v":4},7,12,14,2.5714285714285716,16,3.2,14.771428571428572,null,null,null,null,17,"D","SO- Team Kona",null,null,null,-1,17]
[16,"SARC- I'd Hit That","B",5,{"$f":"VLOOKUP(B20,'NIGHT THREE'!M$3:N$34,2,FALSE)","v":4},{"$f":"VLOOKUP(B20,'NIGHT THREE'!M$3:O$34,3,FALSE)","v":7},4,-12,20,1.7142857142857142,15,3.4,14.114285714285716,null,null,null,null,18,"C","LKP- Block You Like a Hurricane",null,null,null,-8,18]
[17,"SARC- Raleigh Brawl","B",5,{"$f":"VLOOKUP(B21,'NIGHT THREE'!M$3:N$34,2,FALSE)","v":4},{"$f":"VLOOKUP(B21,'NIGHT THREE'!M$3:O$34,3,FALSE)","v":7},4,-40,24,1.1428571428571428,14,3.6,13.742857142857142,null,null,null,null,19,"A","LKP- Pass It Around",null,null,null,-11,19]
[18,"SO- Team Kona","D",0,{"$f":"VLOOKUP(B22,'NIGHT THREE'!M$3:N$34,2,FALSE)","v":6},{"$f":"VLOOKUP(B22,'NIGHT THREE'!M$3:O$34,3,FALSE)","v":5},6,-1,17,2.1428571428571428,10,4.4000000000000004,12.542857142857143,null,null,null,null,20,"B","SARC- I'd Hit That",null,null,null,-12,20]
[19,"SARC- Notorious D.I.G.","B",5,{"$f":"VLOOKUP(B23,'NIGHT THREE'!M$3:N$34,2,FALSE)","v":5},{"$f":"VLOOKUP(B23,'NIGHT THREE'!M$3:O$34,3,FALSE)","v":6},5,3,16,2.2857142857142856,31,0.2,12.485714285714284,null,null,null,null,21,"C","HG- Swingrays",null,null,null,-12,21]
[20,"HG- Swingrays","C",2,{"$f":"VLOOKUP(B24,'NIGHT THREE'!M$3:N$34,2,FALSE)","v":5},{"$f":"VLOOKUP(B24,'NIGHT THREE'!M$3:O$34,3,FALSE)","v":6},5,-12,21,1.5714285714285714,19,2.6,11.171428571428571,null,null,null,null,22,"D","SARC- Unprotected Sets",null,null,null,-19,22]
[21,"GS- 50 Shades of Greystone","A",8,{"$f":"VLOOKUP(B25,'NIGHT THREE'!M$3:N$34,2,FALSE)","v":2},{"$f":"VLOOKUP(B25,'NIGHT THREE'!M$3:O$34,3,FALSE)","v":9},2,-57,27,0.7142857142857143,30,0.4,11.114285714285716,null,null,null,null,23,"C","GS- Dirty Sets on Tuesday",null,null,null,-21,23]
[22,"SARC- Unprotected Sets","D",0,{"$f":"VLOOKUP(B26,'NIGHT THREE'!M$3:N$34,2,FALSE)","v":5},{"$f":"VLOOKUP(B26,'NIGHT THREE'!M$3:O$34,3,FALSE)","v":6},5,-19,22,1.4285714285714286,9,4.5999999999999996,11.028571428571428,null,null,null,null,24,"B","SARC- Raleigh Brawl",null,null,null,-40,24]
[23,"SARC- Here for Beer","D",0,{"$f":"VLOOKUP(B27,'NIGHT THREE'!M$3:N$34,2,FALSE)","v":4},{"$f":"VLOOKUP(B27,'NIGHT THREE'!M$3:O$34,3,FALSE)","v":7},4,-46,25,1,2,6,11,null,null,null,null,25,"D","SARC- Here for Beer",null,null,null,-46,25]
[24,"GS- El Toro's Revenge","D",0,{"$f":"VLOOKUP(B28,'NIGHT THREE'!M$3:N$34,2,FALSE)","v":6},{"$f":"VLOOKUP(B28,'NIGHT THREE'!M$3:O$34,3,FALSE)","v":5},6,29,12,2.8571428571428572,23,1.8,10.657142857142858,null,null,null,null,26,"D","SARC- Mizfits",null,null,null,-55,26]
[25,"LKP- Block You Like a Hurricane","C",2,{"$f":"VLOOKUP(B29,'NIGHT THREE'!M$3:N$34,2,FALSE)","v":5},{"$f":"VLOOKUP(B29,'NIGHT THREE'!M$3:O$34,3,FALSE)","v":6},5,-8,18,2,25,1.4,10.4,null,null,null,null,27,"A","GS- 50 Shades of Greystone",null,null,null,-57,27]
[26,"GS- Dirty Sets on Tuesday","C",2,{"$f":"VLOOKUP(B30,'NIGHT THREE'!M$3:N$34,2,FALSE)","v":3},{"$f":"VLOOKUP(B30,'NIGHT THREE'!M$3:O$34,3,FALSE)","v":8},3,-21,23,1.2857142857142858,13,3.8,10.085714285714285,null,null,null,null,28,"D","SARC- Sets on the Beach",null,null,null,-57,28]
[27,"SPN- Team Sponsors","D",0,{"$f":"VLOOKUP(B31,'NIGHT THREE'!M$3:N$34,2,FALSE)","v":2},{"$f":"VLOOKUP(B31,'NIGHT THREE'!M$3:O$34,3,FALSE)","v":9},2,-74,29,0.42857142857142855,1,6.2,8.6285714285714281,null,null,null,null,29,"D","SPN- Team Sponsors",null,null,null,-74,29]
[28,"SARC- Mizfits","D",0,{"$f":"VLOOKUP(B32,'NIGHT THREE'!M$3:N$34,2,FALSE)","v":2},{"$f":"VLOOKUP(B32,'NIGHT THREE'!M$3:O$34,3,FALSE)","v":9},2,-55,26,0.8571428571428571,7,5,7.8571428571428577,null,null,null,null,30,"C","SARC- Mojo Risin ",null,null,null,-87,30]
[29,"SARC- Sets on the Beach","D",0,{"$f":"VLOOKUP(B33,'NIGHT THREE'!M$3:N$34,2,FALSE)","v":3},{"$f":"VLOOKUP(B33,'NIGHT THREE'!M$3:O$34,3,FALSE)","v":8},3,-57,28,0.5714285714285714,12,4,7.5714285714285712,null,null,null,null,31,"C","SARC- Dirt Devils",null,null,null,-94,31]
[30,"GS- Rhymes with Stupid","B",5,{"$f":"VLOOKUP(B34,'NIGHT THREE'!M$3:N$34,2,FALSE)","v":1},{"$f":"VLOOKUP(B34,'NIGHT THREE'!M$3:O$34,3,FALSE)","v":10},1,-99,32,0,29,0.6,6.6,null,null,null,null,32,"B","GS- Rhymes with Stupid",null,null,null,-99,32]
[31,"SARC- Dirt Devils","C",2,{"$f":"VLOOKUP(B35,'NIGHT THREE'!M$3:N$34,2,FALSE)","v":2},{"$f":"VLOOKUP(B35,'NIGHT THREE'!M$3:O$34,3,FALSE)","v":9},2,-94,31,0.14285714285714285,21,2.2000000000000002,6.3428571428571425]
[32,"SARC- Mojo Risin ","C",2,{"$f":"VLOOKUP(B36,'NIGHT THREE'!M$3:N$34,2,FALSE)","v":1},{"$f":"VLOOKUP(B36,'NIGHT THREE'!M$3:O$34,3,FALSE)","v":10},1,-87,30,0.2857142857142857,17,3,6.2857142857142856]

{"sheet":"Teams","index":7,"n_rows":49,"n_cols":21,"rows_kept":49,"cut":false,"hidden":false,"merged":[]}
[]
[]
[]
[]
[]
[]
[]
[]
[]
[]
[]
[]
[]
[]
[]
[]
["# of Teams",null,"Captain","Club",null,"Team","Division","Bracket Slot","Full Name"]
[1,1,"Jay Cupstid","Springdale","SARC","Mizfits","D",25,{"$f":"E18& \"- \" & F18","v":"SARC- Mizfits"}]
[2,2,"Jason Grieco","Springdale","SARC","Volleywood","A",3,{"$f":"E19& \"- \" & F19","v":"SARC- Volleywood"},null,"A",1,2,3,4,"B",5,6,7,8]
[3,3,"Jay Daft","Springdale","SARC","Sets on the Beach","D",26,"SARC- Sets on the Beach",null,"C",9,10,11,12,"D",13,14,15,16]
[4,4,"John Marks","Springdale","SARC","Sand Diggers","B",20,"SARC- Sand Diggers",null,"E",17,18,19,20,"F",21,22,23,24]
[5,5,"Shawn Mabe","Springdale","SARC","I'd Hit That","B",22,"SARC- I'd Hit That",null,"G",25,26,27,28,"H",29,30,31,32]
[6,6,"Phil Apostolico","Springdale","SARC","Raleigh Brawl","B",17,"SARC- Raleigh Brawl","2015 Bracket Slots"]
[7,7,"Beth/Bruce Farell","Springdale","SARC","Dirt Devils","C",10,"SARC- Dirt Devils",null,null,"SARC - Week 3","SARC - Week 3","SARC - Week 3","SARC - Week 3",null,"LKP - Week 3","LKP - Week 3","GS - Week 3","GS - Week 3"]
[8,8,"Haleigh McCollum","Springdale","SARC","Good Bumps, Nice Sets","C",12,"SARC- Good Bumps, Nice Sets","LKP - A teams week 2","A","SO- Kiss My Ace","LPK-Air Vectors","SARC- Volleywood","LPK- Pass it Around","B","LPK-Casual Sets","NR- Six Pack Attack","LPK-WILL Play for Sets"," GS-50 Shades of Greystone A","A TEAMS"]
[9,9,"AP Blake","Springdale","SARC","Here for Beer","D",27,"SARC- Here for Beer","GS- C  teams week 2","C","SARC- $et for Life","SARC- Dirt Devils","SARC- Mojo Risin","SARC- Good Bumps","D","HG- Swing Rays","LKP- Block You Like a Hurricane","GS- Dirty Sets on Tuesdays","GS- Sand Gators","C Teams"]
[10,10,"Ray Gonzalez","Springdale","SARC","Mojo Risin ","C",11,"SARC- Mojo Risin ","SARC - B teams week 2","E","SARC- Raleigh Brawl","SARC-Notorious DIG","LKP- Bumpn' Uglies","SARC- Sand Diggers","F","NR  Hit That Thang","SARC -I'd Hit That","CT Concrete Feet","GS- Rhymes w Stupid","B TEAMS"]
[11,11,"Matt Vaughan","Springdale","SARC","Notorious D.I.G.","B",18,"SARC- Notorious D.I.G.","SARC - D teams week 2","G","SARC- Mizfits","SARC- Sets on the Beach","SARC- Here for Beer","Team Sponsor","H","SARC Unprotected Sets","SO- Team Kona","GS- El Toro's Revenge","CT- Dangerous When Set","D Teams"]
[12,12,"Ryan Oxendine","Springdale","SARC","Unprotected Sets","D",29,"SARC- Unprotected Sets"]
[13,13,"Dan Schaefer","Springdale","SARC","$et for Life","C",9,"SARC- $et for Life"]
[14,1,"Greg Klofenstine","Lakepark","LKP","Pass It Around","A",4,"LKP- Pass It Around",null,null,"\"A\" Teams"]
[15,2,"John Allen","Lakepark","LKP","Will Play for Sets","A",7,"LKP- Will Play for Sets",null,null,"\"B\" Teams"]
[16,3,"Ken Muller","Lakepark","LKP","Bumpn' Uglies","B",19,"LKP- Bumpn' Uglies",null,null,"\"C\" Teams"]
[17,4,"Dave Radcliffe","Lakepark","LKP","Casual Sets","A",5,"LKP- Casual Sets",null,null,"\"D\" Teams"]
[18,5,"Lawerance Lee","Lakepark","LKP","Air Vectors","A",2,"LKP- Air Vectors",2014]
[19,6,"Jim Perotti","Lakepark","LKP","Block You Like a Hurricane","C",14,"LKP- Block You Like a Hurricane","sarc",null,"Volleywood","LKP- Pity the Fools","Notorious DIG","Six Pack Attack","B","WILL Play for Sets","SO- Kiss My Ace"," 50 Shades of Greystone A","LKP - Block Party"]
[20,1,"Vinnie Smith","Seven Oaks","SO","Kiss My Ace","A",1,"SO- Kiss My Ace","LKP - A teams week 2",null,"Dirt Devils","Good Bumps","Mojo Risin","LKP- Block You Like a Hurricane","D","Sets on the Beach","LPK-Casual Sets","SARC- Here for Beer","Sand Gators"]
[21,2,"Brian Tobey","Seven Oaks","SO","Team Kona","D",30,"SO- Team Kona","sarc",null,"CT Concrete Feet","Raleigh Brawl","CT Off Constantly ","SARC- Sand Diggers","F","NR  Hit That Thang","LPK-Air Vectors","GS- Swampmasters","I'd Hit That"]
[22,1,"Jeff Willey","Crabtree","CT","Concrete Feet","B",23,"CT- Concrete Feet","GS- C  teams week 2",null,"Mizfits","SO- Team Kona","Sponsor","SARC You've been Served","H","CT- Sand in Strange Places","HG- Swing Rays","Rhymes w Stupid","GS- Dirty Sets"]
[24,3,"Thomas Beaulieu","Crabtree","CT","Dangerous When Set","D",32,"CT- Dangerous When Set"]
[25,1,"Suzy Lamb","Greystone","GS","50 Shades of Greystone","A",8,"GS- 50 Shades of Greystone"]
[26,2,"Joe Cockerham","Greystone","GS","El Toro's Revenge","D",31,"GS- El Toro's Revenge"]
[27,3,"Greg Wait","Greystone","GS","Rhymes with Stupid","B",24,"GS- Rhymes with Stupid"]
[28,4,"Jeff Owens","Greystone","GS","Dirty Sets on Tuesday","C",15,"GS- Dirty Sets on Tuesday"]
[29,5,"Jeff Sharp","Greystone","GS","Sand Gators","C",16,"GS- Sand Gators"]
[30,1,"Jim White","North Raleigh","NR","Six Pack Attack","A",6,"NR- Six Pack Attack"]
[31,2,"Steve Hamilton","North Raleigh","NR","Hit That Thang","B",21,"NR- Hit That Thang"]
[32,1,"Glen Lucas","Harrington Grove","HG","Swingrays","C",13,"HG- Swingrays"]
[33,1,"John Rhodes","Team Sponsors","SPN","Team Sponsors","D",28,"SPN- Team Sponsors"]

{"sheet":"32 team Bracketology","index":8,"n_rows":39,"n_cols":13,"rows_kept":39,"cut":false,"hidden":false,"merged":[]}
["32 TEAM BRACKETOLOGY-  The method to this schedule Madness"]
[]
["Night 1","All at SARC- Play Within Your Bracket"]
[null,"Teams play a round robin with 3 teams in their same Bracket"]
[null," 8 Brackets of 4- 3 games each  "]
[]
["A",1,2,3,4,"B",5,6,7,8,null,"Best 8 Teams in Row 1- \"A\" Teams"]
[null,null,null,null,null,null,null,null,null,null,null,"Team #s 1,3,5 and 7 will be the best 4 teams"]
["C",9,10,11,12,"D",13,14,15,16]
[]
["E",17,18,19,20,"F",21,22,23,24]
[]
["G",25,26,27,28,"H",29,30,31,32]
[]
[]
["Night 2","Play Adjoining Bracket-  Bracket VS Bracket"]
[null,"each team Plays the other 4 teams in the adjoining bracket in the same Row"]
[null,"8 team brackets at 4 locations with 2 courts each"]
[null,"4 games for each team"]
[null,null,null,null,null,null,null,null,null,null,null,null,"Best 8 Teams in Row 1"]
["SARC Red","A",1,2,3,4,"B",5,6,7,8,null,"Bracket A vs B"]
[]
["LK","C",9,10,11,12,"D",13,14,15,16,null,"Bracket C vs D"]
[]
["SARC Blue","E",17,18,19,20,"F",21,22,23,24,null,"Bracket E vs F"]
[]
["GS","G",25,26,27,28,"H",29,30,31,32,null,"Bracket G vs H"]
[]
[]
["Night 3","Vertical Brackets (Cross section of Divisions)"]
[null,"Each team Plays the 3 teams within their column plus one team from the adjacent column",null,null,null,null,null,null,null,null,"(2 - A/B matchups)"]
[null,"8 team brackets at 4 locations with 2 courts each",null,null,null,null,null,null,null,null,"(2 - C/D matchups)"]
[null,"4 games for each team"]
[null,"2 columns of 4 teams play at each location"]
[]
["SARC Red",1,2,"SARC Blue",3,4,"LK",5,6,"GS",7,8]
[null,9,10,null,11,12,null,13,14,null,15,16]
[null,17,18,null,19,20,null,21,22,null,23,24]
[null,25,26,null,27,28,null,29,30,null,31,32]

{"sheet":"# of games per night","index":9,"n_rows":50,"n_cols":18,"rows_kept":50,"cut":false,"hidden":false,"merged":[]}
["Night 1","ALL at Springdale",null,null,null,null,null,null,null,null,"Nights 2 and 3",null,"  - 3 HOST CLUBS (SARC, LKP, and GS)"]
["# games","time","Courts",null,null,null,null,null,null,null,null,null,"8 courts at 4 Sites w/ SARC counting as 2 Sites"]
[1,"06:00:00","court 1",null,"32 teams",null,null,null,null,null,null,null,null,"SARC Red and SARC Bluelue to be one perm court and one temp sand court"]
[2,null,"court 2",null,"3 games each",null,null,null,null,null,1,6,"court 1"]
[3,null,"court 3",null,"(32*3)/2",null,null,null,null,null,2,null,"court 2",null,"SARC Red","SARC Blue","LPK","GS"]
[4,null,"court 4",null,{"$f":"(32*3)/2","v":48},null,null,"# of games",null,null,3,"06:30:00","court 1",null,"2 courts","2 courts","2 courts","2 courts"]
[5,null,"court 5",null,null,null,null,null,null,null,4,null,"court 2",null,"8 teams","8 teams","8 teams","8 teams"]
[6,null,"court 6",null,null,null,null,null,null,null,5,7,"court 1"]
[7,"06:30:00","court 1",null,"4 total Sand courts at SARC w/ 2 temp Sand",null,null,null,null,null,6,null,"court 2",null,"Each Site- 8 teams"]
[8,null,"court 2",null,"Courts 3 and 4 are temporary sand courts on the soccer field",null,null,null,null,null,7,"07:30:00","court 1",null,"4 games each",null,"# of Games"]
[9,null,"court 3",null,"12 games on grass (courts 5 and 6)- no lights",null,null,null,null,null,8,null,"court 2",null,"(8*4)/2",null,"games per Site"]
[10,null,"court 4",null,"24 teams to play on grass",null,null,null,null,null,9,8,"court 1",null,{"$f":"(8*4)/2","v":16}]
[11,null,"court 5",null,"Best 8 teams only play sand",null,null,null,null,null,10,null,"court 2",null,"Occuring at 4 Sites"]
[12,null,"court 6",null,null,null,null,null,null,null,11,"08:30:00","court 1"]
[13,"07:00:00","court 1",null,"Games scheduled b/t 6 - 10:30 PM",null,null,null,null,null,12,null,"court 2",null,"Games scheduled b/t 6 PM - 10"]
[14,null,"court 2",null,null,null,null,null,null,null,13,9,"court 1"]
[15,null,"court 3",null,null,null,null,null,null,null,14,null,"court 2"]
[16,null,"court 4",null,null,null,null,null,null,null,15,"09:30:00","court 1"]
[17,null,"court 5",null,null,null,null,null,null,null,16,null,"court 2"]
[18,null,"court 6"]
[19,"07:30:00","court 1",null,null,null,null,null,null,"n "]
[20,null,"court 2"]
[21,null,"court 3"]
[22,null,"court 4"]
[23,null,"court 5"]
[24,null,"court 6"]
[25,"08:00:00","court 1"]
[26,null,"court 2"]
[27,null,"court 3"]
[28,null,"court 4"]
[29,null,"court 5"]
[30,null,"court 6"]
[31,"08:30:00","court 1"]
[32,null,"court 2"]
[33,null,"court 3"]
[34,null,"court 4"]
[35,null,"court 5",null,"if dark, can opt to play at 10:30"]
[36,null,"court 6",null,"if dark, can opt to play at 10:30"]
[37,"09:00:00","court 1"]
[38,null,"court 2"]
[39,null,"court 3"]
[40,null,"court 4"]
[41,"09:30:00","court 1"]
[42,null,"court 2"]
[43,null,"court 3"]
[44,null,"court 4"]
[45,"10:00:00","court 1"]
[46,null,"court 2"]
[47,null,"court 3"]
[48,null,"court 4"]

{"sheet":"Team # Match ups","index":10,"n_rows":51,"n_cols":33,"rows_kept":51,"cut":false,"hidden":false,"merged":[]}
["Night 1",null,null,null,null,null,null,null,null,null,null,null,"Night 2",null,null,null,null,null,null,null,null,null,null,null,"Night 3"]
[]
["# games","Bracket","Team  VS","Team",null,null,null,null,null,null,null,null,"# games","Bracket","Team  VS","Team",null,null,"# games","Bracket","Team  VS","Team",null,null,"# games","Bracket","Team  VS","Team",null,"# games","Bracket","Team  VS","Team"]
[1,"A",1,2,null,null,null,null,null,null,null,null,1,"SARC Red",1,5,null,null,1,"SARC Blue",17,21,null,null,1,"SARC Red",1,9,null,1,"LPK",5,13]
[2,"A",1,3,null,null,null,null,null,null,null,null,2,"SARC Red",1,6,null,null,2,"SARC Blue",17,22,null,null,2,"SARC Red",1,17,null,2,"LPK",5,21]
[3,"A",4,1,null,null,null,null,null,null,null,null,3,"SARC Red",7,1,null,null,3,"SARC Blue",23,17,null,null,3,"SARC Red",25,1,null,3,"LPK",29,5]
[4,"A",2,3,null,null,null,null,null,null,null,null,4,"SARC Red",8,1,null,null,4,"SARC Blue",24,17,null,null,4,"SARC Red",17,9,null,4,"LPK",21,13]
[5,"A",2,4,null,null,null,null,null,null,null,null,5,"SARC Red",2,5,null,null,5,"SARC Blue",18,21,null,null,5,"SARC Red",9,25,null,5,"LPK",13,29]
[6,"A",3,4,null,null,null,null,null,null,null,null,6,"SARC Red",2,6,null,null,6,"SARC Blue",18,22,null,null,6,"SARC Red",17,25,null,6,"LPK",21,29]
[7,"B",5,6,null,null,null,null,null,null,null,null,7,"SARC Red",7,2,null,null,7,"SARC Blue",23,18,null,null,7,"SARC Red",10,1,null,7,"LPK",14,5]
[8,"B",5,7,null,null,null,null,null,null,null,null,8,"SARC Red",8,2,null,null,8,"SARC Blue",24,18,null,null,8,"SARC Red",9,18,null,8,"LPK",13,22]
[9,"B",8,5,null,null,null,null,null,null,null,null,9,"SARC Red",5,3,null,null,9,"SARC Blue",21,19,null,null,9,"SARC Red",26,17,null,9,"LPK",30,21]
[10,"B",6,7,null,null,null,null,null,null,null,null,10,"SARC Red",6,3,null,null,10,"SARC Blue",22,19,null,null,10,"SARC Red",25,2,null,10,"LPK",29,6]
[11,"B",6,8,null,null,null,null,null,null,null,null,11,"SARC Red",3,7,null,null,11,"SARC Blue",19,23,null,null,11,"SARC Red",2,10,null,11,"LPK",6,14]
[12,"B",7,8,null,null,null,null,null,null,null,null,12,"SARC Red",3,8,null,null,12,"SARC Blue",19,24,null,null,12,"SARC Red",2,18,null,12,"LPK",6,22]
[13,"C",9,10,null,null,null,null,null,null,null,null,13,"SARC Red",5,4,null,null,13,"SARC Blue",21,20,null,null,13,"SARC Red",26,2,null,13,"LPK",30,6]
[14,"C",9,11,null,null,null,null,null,null,null,null,14,"SARC Red",6,4,null,null,14,"SARC Blue",22,20,null,null,14,"SARC Red",18,10,null,14,"LPK",22,14]
[15,"C",12,9,null,null,null,null,null,null,null,null,15,"SARC Red",4,7,null,null,15,"SARC Blue",20,23,null,null,15,"SARC Red",10,26,null,15,"LPK",14,30]
[16,"C",10,11,null,null,null,null,null,null,null,null,16,"SARC Red",4,8,null,null,16,"SARC Blue",20,24,null,null,16,"SARC Red",18,26,null,16,"LPK",22,30]
[17,"C",10,12]
[18,"C",11,12]
[19,"D",13,14,null,null,null,null,null,null,null,null,1,"LPK",9,13,null,null,1,"GS",25,29,null,null,1,"SARC Blue",3,11,null,1,"GS",7,15]
[20,"D",13,15,null,null,null,null,null,null,null,null,2,"LPK",9,14,null,null,2,"GS",25,30,null,null,2,"SARC Blue",3,19,null,2,"GS",7,23]
[21,"D",16,13,null,null,null,null,null,null,null,null,3,"LPK",15,9,null,null,3,"GS",31,25,null,null,3,"SARC Blue",27,3,null,3,"GS",31,7]
[22,"D",14,15,null,null,null,null,null,null,null,null,4,"LPK",16,9,null,null,4,"GS",32,25,null,null,4,"SARC Blue",19,11,null,4,"GS",23,15]
[23,"D",14,16,null,null,null,null,null,null,null,null,5,"LPK",10,13,null,null,5,"GS",26,29,null,null,5,"SARC Blue",11,27,null,5,"GS",15,31]
[24,"D",15,16,null,null,null,null,null,null,null,null,6,"LPK",10,14,null,null,6,"GS",26,30,null,null,6,"SARC Blue",19,27,null,6,"GS",23,31]
[25,"E",17,18,null,null,null,null,null,null,null,null,7,"LPK",15,10,null,null,7,"GS",31,26,null,null,7,"SARC Blue",12,3,null,7,"GS",16,7]
[26,"E",17,19,null,null,null,null,null,null,null,null,8,"LPK",16,10,null,null,8,"GS",32,26,null,null,8,"SARC Blue",11,20,null,8,"GS",15,24]
[27,"E",20,17,null,null,null,null,null,null,null,null,9,"LPK",13,11,null,null,9,"GS",29,27,null,null,9,"SARC Blue",28,19,null,9,"GS",32,23]
[28,"E",18,19,null,null,null,null,null,null,null,null,10,"LPK",14,11,null,null,10,"GS",30,27,null,null,10,"SARC Blue",27,4,null,10,"GS",31,8]
[29,"E",18,20,null,null,null,null,null,null,null,null,11,"LPK",11,15,null,null,11,"GS",27,31,null,null,11,"SARC Blue",4,12,null,11,"GS",8,16]
[30,"E",19,20,null,null,null,null,null,null,null,null,12,"LPK",11,16,null,null,12,"GS",27,32,null,null,12,"SARC Blue",4,20,null,12,"GS",8,24]
[31,"F",21,22,null,null,null,null,null,null,null,null,13,"LPK",13,12,null,null,13,"GS",29,28,null,null,13,"SARC Blue",28,4,null,13,"GS",32,8]
[32,"F",21,23,null,null,null,null,null,null,null,null,14,"LPK",14,12,null,null,14,"GS",30,28,null,null,14,"SARC Blue",20,12,null,14,"GS",24,16]
[33,"F",24,21,null,null,null,null,null,null,null,null,15,"LPK",12,15,null,null,15,"GS",28,31,null,null,15,"SARC Blue",12,28,null,15,"GS",16,32]
[34,"F",22,23,null,null,null,null,null,null,null,null,16,"LPK",12,16,null,null,16,"GS",28,32,null,null,16,"SARC Blue",20,28,null,16,"GS",24,32]
[35,"F",22,24]
[36,"F",23,24]
[37,"G",25,26]
[38,"G",25,27]
[39,"G",28,25]
[40,"G",26,27]
[41,"G",26,28]
[42,"G",27,28]
[43,"H",29,30]
[44,"H",29,31]
[45,"H",32,29]
[46,"H",30,31]
[47,"H",30,32]
[48,"H",31,32]